Workbook

Sheet start (hidden)
B2: Das Makro ist momentan nicht aktiviert
B3: Bitte Aktivieren Sie das Makro
B4: Ohne Makro funktioniert diese Datei nicht
B6: roland.schnurr@sixsigmablackbelt.de
B8: https://www.sixsigmablackbelt.de
B10: Abhängig von den Einstellungen in Microsoft Office kann es sein, dass Microsoft Dateien aus dem Internet
B11: mit der Endung .xlsb grundsätzlich beim Öffnen mit folgendem Warnhinweis versieht.
B23: Alle Dateien auf dieser Website sind grundsätzlich mit virustotal auf Freiheit von Viren überprüft.
B24: Virustotal prüft mit den 63 gängigsten Virenprogrammen auf Virenfreiheit.
B26: Möchten Sie mit unseren Dateien arbeiten und Microsoft gibt Ihnen obigen Hinweis, gehen Sie wie folgt vor:
B28: ="- Speichern Sie die Datei" -> - Speichern Sie die Datei
B29: ="- Wählen Sie den Speicherort (im Standardordner „downloads“)." -> - Wählen Sie den Speicherort (im Standardordner „downloads“).
B30: ="- Datei auswählen" -> - Datei auswählen
B31: ="- rechte Maustaste" -> - rechte Maustaste
B32: ="- Ein Fenster erscheint. Der letzte Punkt in diesem Fenster ist „Eigenschaften“" -> - Ein Fenster erscheint. Der letzte Punkt in diesem Fenster ist „Eigenschaften“
B33: ="- Wählen Sie diesen Punkt aus" -> - Wählen Sie diesen Punkt aus
B34: ="- Setzen Sie in dem erscheinenden Fenster den Haken bei „Zulassen“ (siehe unten)" -> - Setzen Sie in dem erscheinenden Fenster den Haken bei „Zulassen“ (siehe unten)
B35: ="- Klicken Sie auf „Übernehmen“ und dann auf „OK“" -> - Klicken Sie auf „Übernehmen“ und dann auf „OK“
B36: ="- Danach können Sie die Datei öffnen und mit ihr arbeiten." -> - Danach können Sie die Datei öffnen und mit ihr arbeiten.

Sheet data
B2: Dateneingabe
B4: Name | C4: Datum | D4: Stichprobe | E4: Y1 | F4: Y2 | G4: Y3 | H4: Y4 | I4: Y5
D5: 1 | E5: 74.03 | F5: 74.002 | G5: 74.019 | H5: 73.992 | I5: 74.008
D6: 2 | E6: 73.995 | F6: 73.992 | G6: 74.001 | H6: 74.011 | I6: 74.004
D7: 3 | E7: 73.988 | F7: 74.024 | G7: 74.021 | H7: 74.005 | I7: 74.002
D8: 4 | E8: 74.002 | F8: 73.996 | G8: 73.993 | H8: 74.015 | I8: 74.009
D9: 5 | E9: 73.992 | F9: 74.007 | G9: 74.015 | H9: 73.989 | I9: 74.014
D10: 6
D11: 7
D12: 8
D13: 9
D14: 10
D15: 11
D16: 12
D17: 13
D18: 14
D19: 15
D20: 16
D21: 17
D22: 18
D23: 19
D24: 20
D25: 21
D26: 22
D27: 23
D28: 24
D29: 25
D30: 26
D31: 27
D32: 28
D33: 29
D34: 30
D35: 31
D36: 32
D37: 33
D38: 34
D39: 35
D40: 36
D41: 37
D42: 38
D43: 39
D44: 40
D45: 41
D46: 42
D47: 43
D48: 44
D49: 45
D50: 46
D51: 47
D52: 48
D53: 49
D54: 50
B56: Bis zu 50 Stichproben á 5 Werte
B57: Bei jeder Stichprobe muss die gleiche Anzahl an Messerten aufgenommen werden
B58: Die Stichprobengröße muss mindestens 2 sein

Sheet input
N2: Prozessfähigkeit
Q4: Werte können geändert werden
Q5: Werte werden berechnet (Blatt Berechnung) | AB5: Diese Version ist eingeschränkt
AB6: - Es sind maximal 50 Stichproben à 5 Teile berechenbar
Q7: Artikel: | R7: Halter | AB7: ="- Die Datei ist nur als .xlsm speicherbar" -> - Die Datei ist nur als .xlsm speicherbar
Q8: A-Nummer | R8: C2G234824ß
Q9: Zeichnung: | R9: UZT1340124357 | AB9: Die Version für bis zu 50 Stichproben à Teile (M0464) können Sie unter untenstehendem Link erwerben
Q10: Prüfer: | R10: Maier | AB10: =HYPERLINK("https://www.sixsigmablackbelt.de/preisvergleich/","Preise und Bestellung") -> Preise und Bestellung
Q11: Messmittel: | R11: Messschieber 47.22452
Q12: Datum: | R12: 2014-12-10 | AB12: Fragen gerne an:
Q13: Merkmal: | R13: Länge | AB13: =HYPERLINK("mailto:roland.schnurr@sixsigmablackbelt.de","roland.schnurr@sixsigmablackbelt.de") -> roland.schnurr@sixsigmablackbelt.de
Q14: Maßeinheit: | R14: mm
Q15: Sollwert msoll = | S15: 74
Q16: Unterer Grenzwert UGW = | S16: 73.95
Q17: Oberer Grenzwert OGW = | S17: 74.05
Q18: Anzahl Klassen Histogramm = | S18: 20
Q19: Ppk < | R19: 1.33 | S19: Prozess nicht fähig
Q20: Ppk | R20: zwischen | S20: Prozess bedingt fähig
Q21: Ppk > | R21: 1.66 | S21: Prozess fähig
Q23: Umfang der Stichprobe | S23: =Anzahl -> 25
Q24: Mittelwert m | S24: =Mittelwert -> 74.00504
Q25: Die Werte sind | S25: =IF(calculation!CO20<0.05,"nicht normalverteilt","normalverteilt") -> normalverteilt
Q27: Standardabweich. s (ges.) | S27: =Standardabweichung -> 0.01155595085
Q28: Gesamtprozess-fähigkeit | R28: Ppu | S28: =CPU -> 1.587637998
R29: Ppo | S29: =CPO -> 1.296878713
R30: Pp | S30: =CP -> 1.442258356
R31: Ppk | S31: =CPK -> 1.296878713
Q32: ="evaluation Ppk =>" -> evaluation Ppk => | S32: =IF(R19="","",(IF(S31<R19,S19,IF(S31>R21,S21,S20)))) -> Prozess nicht fähig
Q34: Berechnete Leistung in ppm
Q35: Überschreitungs-anteil | R35: pUGW | S35: =BERPUGW -> 0.9540859231
R36: pOGW | S36: =BERPOGW -> 49.99088144
R37: p | S37: =BERP -> 50.94496736
Q39: Beobachtete Leistung in ppm
Q40: Überschreitungs-anteil | R40: pUGW | S40: =BEOBPUGW -> 0
R41: pOGW | S41: =BEOBPOGW -> 0
R42: p | S42: =BEOBPPM -> 0
Q44: Cpk < | R44: 1.33 | S44: Prozess nicht fähig | U44: Definition Ppk und Cpk nach nach ISO22514, Bosch; (package SixsSigma) und Minitab Für Cpk (Standardabweichung Rquer und Konstante für erwartungsgetreue Schätzung) Für Ppk (Standardabweichung über die gesamte Grundgesamtheit) siehe auch: https://www.sixsigmablackbelt.de/definition-von-cpk-und-ppk-nach-iso-22514-und-aiag-spc/
Q45: Cpk | R45: zwischen | S45: Prozess bedingt fähig
Q46: Cpk > | R46: 1.66 | S46: Prozess fähig
Q48: Standardabweich. s (innerhalb.) | S48: =calculation!AP44 -> 0.01212381771
Q49: Prozessfähigkeit (innerhalb, potentiell) | R49: Cpu | S49: =calculation!AP47 -> 1.513274704
R50: Cpo | S50: =calculation!AP48 -> 1.236134279
R51: Cp | S51: =calculation!AP46 -> 1.374704492
R52: Cpk | S52: =calculation!AP49 -> 1.236134279
Q53: ="Bewertung Cpk =>" -> Bewertung Cpk => | S53: =IF(R44="","",(IF(S52<R44,S44,IF(S52>R46,S46,S45)))) -> Prozess nicht fähig
C56: Datum: | D56: ___________________ | O56: Unterschrift: | P56: ____________________________________________ | S56: Abteilung: | T56: _______________________________________

Sheet calculation (hidden)
AN2: Prozess- und Maschinenfähigkeit | BD2: Stichprobe chronologisch | BW2: Wahrscheinlichkeitsnetz | CE2: Test auf Normalverteilung (Anderson Darling)
A3: x | M3: Xquer Karte | Q3: Range Karte | W3: Stichprobe Berechnung
B4: Y1 | C4: Y2 | D4: Y3 | E4: Y4 | F4: Y5 | H4: Mittelwert | I4: Standardabweichung | J4: Range | L4: Zähler | M4: Mittelwert | N4: X quer | O4: OEG X quer | P4: UEG X quer | Q4: Mittelwert | R4: Range | S4: OEG R | V4: i | W4: Wert für Berechnung | X4: <UGW | Y4: >OGW | Z4: i | AA4: Stichprobe 1 | AB4: i | AC4: Stichprobe 2 | AE4: i | AF4: Stichprobe 3 | AH4: i | AI4: Stichprobe 4 | AK4: i | AL4: Stichprobe 5 | BD4: Zähler | BE4: X Wert | BF4: Y1 Wert | BG4: Y2 Wert | BH4: Y3 Wert | BI4: Y4 Wert | BJ4: Y5 Wert | BL4: OGW | BM4: UGW | BN4: =" - 1 Sigma" -> - 1 Sigma | BO4: =" + 1 Sigma" -> + 1 Sigma | BP4: ="- 2 Sigma" -> - 2 Sigma | BQ4: =" + 2 Sigma" -> + 2 Sigma | BR4: =" - 3 Sigma" -> - 3 Sigma | BS4: =" + 3 Sigma" -> + 3 Sigma | BT4: Mittelwert | BX4: u | BY4: x-quer+u∙s | BZ4: Helfer | CA4: Fehlerindikator | CE4: i | CF4: xi sortiert | CG4: Zähler | CI4: BG | CK4: S | CL4: z | CN4: Wert | CO4: z
A5: 1 | B5: =IF(data!E5="","",data!E5) -> 74.03 | C5: =IF(data!F5="","",data!F5) -> 74.002 | D5: =IF(data!G5="","",data!G5) -> 74.019 | E5: =IF(data!H5="","",data!H5) -> 73.992 | F5: =IF(data!I5="","",data!I5) -> 74.008 | H5: =IF(B5<>"",AVERAGE(B5:F5),"") -> 74.0102 | I5: =IF(B5<>"",_xlfn.STDEV.P(B5:F5),"") -> 0.01321211565 | J5: =IF(B5<>"",MAX(B5:F5)-MIN(B5:F5),"") -> 0.038 | L5: 1 | M5: =IF(H5="",NA(),xquerquer) -> 74.00504 | N5: =IF(H5="",NA(),H5) -> 74.0102 | O5: =IF(H5="",NA(),xquerquer+(Azwei*Rquer)) -> 74.0213114 | P5: =IF(H5="",NA(),xquerquer-(Azwei*Rquer)) -> 73.9887686 | Q5: =IF(H5="",NA(),Rquer) -> 0.0282 | R5: =IF(H5="",NA(),J5) -> 0.038 | S5: =IF(H5="",NA(),Dvier*Rquer) -> 0.059643 | V5: 1 | W5: =IF($AP$39=2,IF(AC5<>"",AC5,""),(IF($AP$39=3,IF(AF5<>"",AF5,""),(IF($AP$39=4,IF(AI5<>"",AI5,""),IF(AL5<>"",AL5,"")))))) -> 74.03 | X5: =IF(W5<>"",IF(W5<UGW,1,0),"") -> 0 | Y5: =IF(W5<>"",IF(W5>OGW,1,0),"") -> 0 | AB5: E5 | AC5: =IF($B$5="","",$B$5) -> 74.03 | AE5: E5 | AF5: =IF($B$5="","",$B$5) -> 74.03 | AH5: E5 | AI5: =IF($B$5="","",$B$5) -> 74.03 | AK5: E5 | AL5: =IF($B$5="","",$B$5) -> 74.03 | AO5: Datum: | AP5: =Datum -> 2014-12-10 | BD5: 1 | BE5: =IF((AnzahlderStichproben>BD5),BD5,AnzahlderStichproben) -> 1 | BF5: =IF(data!E5<>"",data!E5,"") -> 74.03 | BG5: =IF(data!F5<>"",data!F5,NA()) -> 74.002 | BH5: =IF(data!G5<>"",data!G5,NA()) -> 74.019 | BI5: =IF(data!H5<>"",data!H5,NA()) -> 73.992 | BJ5: =IF(data!I5<>"",data!I5,NA()) -> 74.008 | BL5: =IF($AP$10="",#N/A,IF(W5<>"",OGW,BL4)) -> 74.05 | BM5: =IF($AP$9="",#N/A,(IF(W5<>"",$AP$9,BM4))) -> 73.95 | BN5: =Mittelwert-Standardabweichung -> 73.99348405 | BO5: =Mittelwert+Standardabweichung -> 74.01659595 | BP5: =Mittelwert-2*Standardabweichung -> 73.9819281 | BQ5: =Mittelwert+2*Standardabweichung -> 74.0281519 | BR5: =Mittelwert-3*Standardabweichung -> 73.97037215 | BS5: =Mittelwert+3*Standardabweichung -> 74.03970785 | BT5: =Mittelwert -> 74.00504 | BX5: -6 | BY5: =Mittelwert+BX5*Standardabweichung -> 73.93570429 | BZ5: 3 | CA5: =BZ5*2 -> 6 | CB5: =BY5 -> 73.93570429 | CE5: 1 | CF5: =IF(W5="",NA(),SMALL(xi,CG5)) -> 73.988 | CG5: =IF(W5="","",1) -> 1 | CH5: =IF(W5="","",NORMSDIST((CF5-Mittelwert)/Standardabweichung)-0.00000001) -> 0.07016476293 | CI5: =IF(W5="","",1-CH5) -> 0.9298352371 | CJ5: =IF(IF(W5="","",SMALL(BG,CG5))=0,0.0001,IF(W5="","",SMALL(BG,CG5))) -> 0.01538920494 | CK5: =IF(W5="","",(2*CG5-1)*(LN(CJ5)+LN(CH5))) -> -6.83099804 | CL5: =IF(W5="",NA(),NORMSINV((CG5-0.3)/(Anzahl+0.4))) -> -1.917944016 | CN5: =Standardabweichung*CO5+Mittelwert -> 74.03970785 | CO5: 3
A6: 2 | B6: =IF(data!E6="","",data!E6) -> 73.995 | C6: =IF(data!F6="","",data!F6) -> 73.992 | D6: =IF(data!G6="","",data!G6) -> 74.001 | E6: =IF(data!H6="","",data!H6) -> 74.011 | F6: =IF(data!I6="","",data!I6) -> 74.004 | H6: 74.0006 | I6: 0.006711184694 | J6: 0.019 | L6: =IF(H6="",L5,A6) -> 2 | M6: 74.00504 | N6: 74.0006 | O6: 74.0213114 | P6: 73.9887686 | Q6: 0.0282 | R6: =IF(H6="",NA(),J6) -> 0.019 | S6: 0.059643 | V6: 2 | W6: =IF($AP$39=2,IF(AC6<>"",AC6,""),(IF($AP$39=3,IF(AF6<>"",AF6,""),(IF($AP$39=4,IF(AI6<>"",AI6,""),IF(AL6<>"",AL6,"")))))) -> 74.002 | X6: 0 | Y6: 0 | AC6: =IF($C$5="","",$C$5) -> 74.002 | AF6: =IF($C$5="","",$C$5) -> 74.002 | AI6: =IF($C$5="","",$C$5) -> 74.002 | AL6: =IF($C$5="","",$C$5) -> 74.002 | AO6: Merkmal: | AP6: =Merkmal -> Länge | BD6: 2 | BE6: 2 | BF6: =IF(data!E6<>"",data!E6,BF5) -> 73.995 | BG6: =IF(data!F6<>"",data!F6,BG5) -> 73.992 | BH6: =IF(data!G6<>"",data!G6,BH5) -> 74.001 | BI6: =IF(data!H6<>"",data!H6,BI5) -> 74.011 | BJ6: =IF(data!I6<>"",data!I6,BJ5) -> 74.004 | BL6: 74.05 | BM6: =IF($AP$9="",#N/A,(IF(W6<>"",$AP$9,BM5))) -> 73.95 | BN6: =BN5 -> 73.99348405 | BO6: 74.01659595 | BP6: 73.9819281 | BQ6: 74.0281519 | BR6: 73.97037215 | BS6: 74.03970785 | BT6: 74.00504 | BX6: -5 | BY6: 73.94726025 | BZ6: 3 | CA6: =BZ6*2 -> 6 | CB6: =CB5 -> 73.93570429 | CE6: 2 | CF6: 73.989 | CG6: =IF(W6="","",1+CG5) -> 2 | CH6: 0.08256403011 | CI6: 0.9174359699 | CJ6: =IF(W6="","",SMALL(BG,CG6)) -> 0.05042850161 | CK6: -16.44413976 | CL6: -1.499059227 | CN6: =Standardabweichung*CO6+Mittelwert -> 74.00504 | CO6: 0
A7: 3 | B7: =IF(data!E7="","",data!E7) -> 73.988 | C7: =IF(data!F7="","",data!F7) -> 74.024 | D7: =IF(data!G7="","",data!G7) -> 74.021 | E7: =IF(data!H7="","",data!H7) -> 74.005 | F7: =IF(data!I7="","",data!I7) -> 74.002 | H7: 74.008 | I7: 0.01319090596 | J7: 0.036 | L7: =IF(H7="",L6,A7) -> 3 | M7: 74.00504 | N7: 74.008 | O7: 74.0213114 | P7: 73.9887686 | Q7: 0.0282 | R7: 0.036 | S7: 0.059643 | V7: 3 | W7: 74.019 | X7: 0 | Y7: 0 | AB7: E6 | AC7: =IF($B$6="","",$B$6) -> 73.995 | AF7: =IF($D$5="","",$D$5) -> 74.019 | AI7: =IF($D$5="","",$D$5) -> 74.019 | AL7: =IF($D$5="","",$D$5) -> 74.019 | AO7: Maßeinheit: | AP7: =Maßeinheit -> mm | BD7: 3 | BE7: 3 | BF7: =IF(data!E7<>"",data!E7,BF6) -> 73.988 | BG7: =IF(data!F7<>"",data!F7,BG6) -> 74.024 | BH7: =IF(data!G7<>"",data!G7,BH6) -> 74.021 | BI7: =IF(data!H7<>"",data!H7,BI6) -> 74.005 | BJ7: =IF(data!I7<>"",data!I7,BJ6) -> 74.002 | BL7: 74.05 | BM7: 73.95 | BN7: 73.99348405 | BO7: 74.01659595 | BP7: 73.9819281 | BQ7: 74.0281519 | BR7: 73.97037215 | BS7: 74.03970785 | BT7: 74.00504 | BX7: -4 | BY7: 73.9588162 | BZ7: 3 | CA7: 6 | CB7: =CB6 -> 73.93570429 | CE7: 3 | CF7: 73.992 | CG7: 3 | CH7: 0.1295706626 | CI7: 0.8704293374 | CJ7: 0.08362310309 | CK7: -22.62482167 | CL7: -1.246452206 | CN7: =Standardabweichung*CO7+Mittelwert -> 73.97037215 | CO7: -3
A8: 4 | B8: =IF(data!E8="","",data!E8) -> 74.002 | C8: =IF(data!F8="","",data!F8) -> 73.996 | D8: =IF(data!G8="","",data!G8) -> 73.993 | E8: =IF(data!H8="","",data!H8) -> 74.015 | F8: =IF(data!I8="","",data!I8) -> 74.009 | H8: 74.003 | I8: 0.008124038405 | J8: 0.022 | L8: 4 | M8: 74.00504 | N8: 74.003 | O8: 74.0213114 | P8: 73.9887686 | Q8: 0.0282 | R8: 0.022 | S8: 0.059643 | V8: 4 | W8: 73.992 | X8: 0 | Y8: 0 | AC8: =IF($C$6="","",$C$6) -> 73.992 | AE8: E6 | AF8: =IF($B$6="","",$B$6) -> 73.995 | AI8: =IF($E$5="","",$E$5) -> 73.992 | AL8: =IF($E$5="","",$E$5) -> 73.992 | AO8: Sollwert msoll = | AP8: =Sollwert -> 74 | BD8: 4 | BE8: 4 | BF8: =IF(data!E8<>"",data!E8,BF7) -> 74.002 | BG8: =IF(data!F8<>"",data!F8,BG7) -> 73.996 | BH8: =IF(data!G8<>"",data!G8,BH7) -> 73.993 | BI8: =IF(data!H8<>"",data!H8,BI7) -> 74.015 | BJ8: =IF(data!I8<>"",data!I8,BJ7) -> 74.009 | BL8: 74.05 | BM8: 73.95 | BN8: 73.99348405 | BO8: 74.01659595 | BP8: 73.9819281 | BQ8: 74.0281519 | BR8: 73.97037215 | BS8: 74.03970785 | BT8: 74.00504 | BX8: -2 | BY8: 73.9819281 | BZ8: 3 | CA8: 6 | CB8: 73.93570429 | CE8: 4 | CF8: 73.992 | CG8: 4 | CH8: 0.1295706626 | CI8: 0.8704293374 | CJ8: 0.1135167948 | CK8: -29.53533359 | CL8: -1.055189681
A9: 5 | B9: =IF(data!E9="","",data!E9) -> 73.992 | C9: =IF(data!F9="","",data!F9) -> 74.007 | D9: =IF(data!G9="","",data!G9) -> 74.015 | E9: =IF(data!H9="","",data!H9) -> 73.989 | F9: =IF(data!I9="","",data!I9) -> 74.014 | H9: 74.0034 | I9: 0.01092886087 | J9: 0.026 | L9: 5 | M9: 74.00504 | N9: 74.0034 | O9: 74.0213114 | P9: 73.9887686 | Q9: 0.0282 | R9: 0.026 | S9: 0.059643 | V9: 5 | W9: 74.008 | X9: 0 | Y9: 0 | AB9: E7 | AC9: =IF($B$7="","",$B$7) -> 73.988 | AF9: =IF($C$6="","",$C$6) -> 73.992 | AH9: E6 | AI9: =IF($B$6="","",$B$6) -> 73.995 | AL9: =IF($F$5="","",$F$5) -> 74.008 | AO9: Unterer Grenzwert UGW = | AP9: =IF(input!S16="","",input!S16) -> 73.95 | BD9: 5 | BE9: 5 | BF9: =IF(data!E9<>"",data!E9,BF8) -> 73.992 | BG9: =IF(data!F9<>"",data!F9,BG8) -> 74.007 | BH9: =IF(data!G9<>"",data!G9,BH8) -> 74.015 | BI9: =IF(data!H9<>"",data!H9,BI8) -> 73.989 | BJ9: =IF(data!I9<>"",data!I9,BJ8) -> 74.014 | BL9: 74.05 | BM9: 73.95 | BN9: 73.99348405 | BO9: 74.01659595 | BP9: 73.9819281 | BQ9: 74.0281519 | BR9: 73.97037215 | BS9: 74.03970785 | BT9: 74.00504 | BX9: -1 | BY9: 73.99348405 | BZ9: 3 | CA9: 6 | CB9: 73.93570429 | CE9: 5 | CF9: 73.992 | CG9: 5 | CH9: 0.1295706626 | CI9: 0.8704293374 | CJ9: 0.1943730474 | CK9: -33.13354438 | CL9: -0.8963258813
A10: 6 | L10: 5 | V10: 6 | W10: 73.995 | X10: 0 | Y10: 0 | AC10: =IF($C$7="","",$C$7) -> 74.024 | AF10: =IF($D$6="","",$D$6) -> 74.001 | AI10: =IF($C$6="","",$C$6) -> 73.992 | AK10: E6 | AL10: =IF($B$6="","",$B$6) -> 73.995 | AO10: Oberer Grenzwert OGW = | AP10: =IF(input!S17="","",input!S17) -> 74.05 | BD10: 6 | BE10: 5 | BF10: =IF(data!E10<>"",data!E10,BF9) -> 73.992 | BG10: =IF(data!F10<>"",data!F10,BG9) -> 74.007 | BH10: =IF(data!G10<>"",data!G10,BH9) -> 74.015 | BI10: =IF(data!H10<>"",data!H10,BI9) -> 73.989 | BJ10: =IF(data!I10<>"",data!I10,BJ9) -> 74.014 | BL10: 74.05 | BM10: 73.95 | BN10: 73.99348405 | BO10: 74.01659595 | BP10: 73.9819281 | BQ10: 74.0281519 | BR10: 73.97037215 | BS10: 74.03970785 | BT10: 74.00504 | BX10: 1 | BY10: 74.01659595 | BZ10: 3 | CA10: 6 | CB10: 73.93570429 | CE10: 6 | CF10: 73.993 | CG10: 6 | CH10: 0.1487319249 | CI10: 0.8512680751 | CJ10: 0.1943730474 | CK10: -38.97944376 | CL10: -0.7573855717 | CN10: Summe S | CO10: =SUM(Normalverteilung_S) -> -632.3623367
A11: 7 | L11: 5 | V11: 7 | W11: 73.992 | X11: 0 | Y11: 0 | AB11: E8 | AC11: =IF($B$8="","",$B$8) -> 74.002 | AE11: E7 | AF11: =IF($B$7="","",$B$7) -> 73.988 | AI11: =IF($D$6="","",$D$6) -> 74.001 | AL11: =IF($C$6="","",$C$6) -> 73.992 | BD11: 7 | BE11: 5 | BF11: =IF(data!E11<>"",data!E11,BF10) -> 73.992 | BG11: =IF(data!F11<>"",data!F11,BG10) -> 74.007 | BH11: =IF(data!G11<>"",data!G11,BH10) -> 74.015 | BI11: =IF(data!H11<>"",data!H11,BI10) -> 73.989 | BJ11: =IF(data!I11<>"",data!I11,BJ10) -> 74.014 | BL11: 74.05 | BM11: 73.95 | BN11: 73.99348405 | BO11: 74.01659595 | BP11: 73.9819281 | BQ11: 74.0281519 | BR11: 73.97037215 | BS11: 74.03970785 | BT11: 74.00504 | BX11: 2 | BY11: 74.0281519 | BZ11: 3 | CA11: 6 | CB11: 73.93570429 | CE11: 7 | CF11: 73.995 | CG11: 7 | CH11: 0.1924737616 | CI11: 0.8075262384 | CJ11: 0.2190640557 | CK11: -41.160425 | CL11: -0.6317365277 | CN11: AD | CO11: =-CO10/Anzahl-Anzahl -> 0.2944934665
A12: 8 | H12: =IF(B12<>"",AVERAGE(B12:F12),"") ->  | J12: =IF(B12<>"",MAX(B12:F12)-MIN(B12:F12),"") ->  | L12: 5 | V12: 8 | W12: 74.001 | X12: 0 | Y12: 0 | AC12: =IF($C$8="","",$C$8) -> 73.996 | AF12: =IF($C$7="","",$C$7) -> 74.024 | AI12: =IF($E$6="","",$E$6) -> 74.011 | AL12: =IF($D$6="","",$D$6) -> 74.001 | AO12: Umfang der Stichprobe | AP12: =COUNT(xi) -> 25 | BD12: 8 | BE12: 5 | BF12: =IF(data!E12<>"",data!E12,BF11) -> 73.992 | BG12: =IF(data!F12<>"",data!F12,BG11) -> 74.007 | BH12: =IF(data!G12<>"",data!G12,BH11) -> 74.015 | BI12: =IF(data!H12<>"",data!H12,BI11) -> 73.989 | BJ12: =IF(data!I12<>"",data!I12,BJ11) -> 74.014 | BL12: 74.05 | BM12: 73.95 | BN12: 73.99348405 | BO12: 74.01659595 | BP12: 73.9819281 | BQ12: 74.0281519 | BR12: 73.97037215 | BS12: 74.03970785 | BT12: 74.00504 | BX12: 4 | BY12: 74.0512638 | BZ12: 3 | CA12: 6 | CB12: 73.93570429 | CE12: 8 | CF12: 73.996 | CG12: 8 | CH12: 0.2170247352 | CI12: 0.7829752648 | CJ12: 0.3030139695 | CK12: -40.82580473 | CL12: -0.5153632434 | CN12: AD* | CO12: =CO11*(1+0.75/Anzahl+2.25/Anzahl^2) -> 0.3043884469
A13: 9 | H13: =IF(B13<>"",AVERAGE(B13:F13),"") ->  | J13: =IF(B13<>"",MAX(B13:F13)-MIN(B13:F13),"") ->  | L13: 5 | V13: 9 | W13: 74.011 | X13: 0 | Y13: 0 | AB13: E9 | AC13: =IF($B$9="","",$B$9) -> 73.992 | AF13: =IF($D$7="","",$D$7) -> 74.021 | AH13: E7 | AI13: =IF($B$7="","",$B$7) -> 73.988 | AL13: =IF($E$6="","",$E$6) -> 74.011 | AO13: Mittelwert m | AP13: =AVERAGE(xi) -> 74.00504 | BD13: 9 | BE13: 5 | BF13: =IF(data!E13<>"",data!E13,BF12) -> 73.992 | BG13: =IF(data!F13<>"",data!F13,BG12) -> 74.007 | BH13: =IF(data!G13<>"",data!G13,BH12) -> 74.015 | BI13: =IF(data!H13<>"",data!H13,BI12) -> 73.989 | BJ13: =IF(data!I13<>"",data!I13,BJ12) -> 74.014 | BL13: 74.05 | BM13: 73.95 | BN13: 73.99348405 | BO13: 74.01659595 | BP13: 73.9819281 | BQ13: 74.0281519 | BR13: 73.97037215 | BS13: 74.03970785 | BT13: 74.00504 | BX13: 5 | BY13: 74.06281975 | BZ13: 3 | CA13: 6 | CB13: 73.93570429 | CE13: 9 | CF13: 74.001 | CG13: 9 | CH13: 0.3633181599 | CI13: 0.6366818401 | CJ13: 0.365919395 | CK13: -34.30291547 | CL13: -0.4055961338
A14: 10 | L14: 5 | V14: 10 | W14: 74.004 | X14: 0 | Y14: 0 | AC14: =IF($C$9="","",$C$9) -> 74.007 | AE14: E8 | AF14: =IF($B$8="","",$B$8) -> 74.002 | AI14: =IF($C$7="","",$C$7) -> 74.024 | AL14: =IF($F$6="","",$F$6) -> 74.004 | AO14: Standardabweichung s gesamt | AP14: =STDEV(xi) -> 0.01155595085 | BD14: 10 | BE14: 5 | BF14: =IF(data!E14<>"",data!E14,BF13) -> 73.992 | BG14: =IF(data!F14<>"",data!F14,BG13) -> 74.007 | BH14: =IF(data!G14<>"",data!G14,BH13) -> 74.015 | BI14: =IF(data!H14<>"",data!H14,BI13) -> 73.989 | BJ14: =IF(data!I14<>"",data!I14,BJ13) -> 74.014 | BL14: 74.05 | BM14: 73.95 | BN14: 73.99348405 | BO14: 74.01659595 | BP14: 73.9819281 | BQ14: 74.0281519 | BR14: 73.97037215 | BS14: 74.03970785 | BT14: 74.00504 | BX14: 6 | BY14: 74.07437571 | BZ14: 3 | CA14: 6 | CB14: 73.93570429 | CE14: 10 | CF14: 74.002 | CG14: 10 | CH14: 0.3962491032 | CI14: 0.6037508968 | CJ14: 0.3989194155 | CK14: -35.04945325 | CL14: -0.3005213318
A15: 11 | L15: 5 | V15: 11 | W15: 73.988 | X15: 0 | Y15: 0 | AB15: E10 | AC15: =IF($B$10="","",$B$10) ->  | AF15: =IF($C$8="","",$C$8) -> 73.996 | AI15: =IF($D$7="","",$D$7) -> 74.021 | AK15: E7 | AL15: =IF($B$7="","",$B$7) -> 73.988 | BD15: 11 | BE15: 5 | BF15: =IF(data!E15<>"",data!E15,BF14) -> 73.992 | BG15: =IF(data!F15<>"",data!F15,BG14) -> 74.007 | BH15: =IF(data!G15<>"",data!G15,BH14) -> 74.015 | BI15: =IF(data!H15<>"",data!H15,BI14) -> 73.989 | BJ15: =IF(data!I15<>"",data!I15,BJ14) -> 74.014 | BL15: 74.05 | BM15: 73.95 | BN15: 73.99348405 | BO15: 74.01659595 | BP15: 73.9819281 | BQ15: 74.0281519 | BR15: 73.97037215 | BS15: 74.03970785 | BT15: 74.00504 | BX15: -3 | BY15: 73.97037215 | BZ15: 3 | CA15: 6 | CB15: 73.93570429 | CE15: 11 | CF15: 74.002 | CG15: 11 | CH15: 0.3962491032 | CI15: 0.6037508968 | CJ15: 0.432658603 | CK15: -37.03388902 | CL15: -0.1986715438 | CN15: p1 | CO15: =IF(AND(CO12<13, CO12>=0.6),EXP(1.2937-5.709*CO12+0.0186*CO12^ 2),0) -> 0
A16: 12 | L16: 5 | V16: 12 | W16: 74.024 | X16: 0 | Y16: 0 | AC16: =IF($C$10="","",$C$10) ->  | AF16: =IF($D$8="","",$D$8) -> 73.993 | AI16: =IF($E$7="","",$E$7) -> 74.005 | AL16: =IF($C$7="","",$C$7) -> 74.024 | AP16: Fähigkeitskennwerte | BD16: 12 | BE16: 5 | BF16: =IF(data!E16<>"",data!E16,BF15) -> 73.992 | BG16: =IF(data!F16<>"",data!F16,BG15) -> 74.007 | BH16: =IF(data!G16<>"",data!G16,BH15) -> 74.015 | BI16: =IF(data!H16<>"",data!H16,BI15) -> 73.989 | BJ16: =IF(data!I16<>"",data!I16,BJ15) -> 74.014 | BL16: 74.05 | BM16: 73.95 | BN16: 73.99348405 | BO16: 74.01659595 | BP16: 73.9819281 | BQ16: 74.0281519 | BR16: 73.97037215 | BS16: 74.03970785 | BT16: 74.00504 | BX16: 3 | BY16: 74.03970785 | BZ16: 3 | CA16: 6 | CB16: 73.93570429 | CE16: 12 | CF16: 74.002 | CG16: 12 | CH16: 0.3962491032 | CI16: 0.6037508968 | CJ16: 0.5013809141 | CK16: -37.17033166 | CL16: -0.09884688422 | CN16: p2 | CO16: =IF(AND(CO12<0.6,CO12>=0.34),EXP(0.9177-4.279*CO12-1.38*CO12^2),0) -> 0
A17: 13 | L17: 5 | V17: 13 | W17: 74.021 | X17: 0 | Y17: 0 | AB17: E11 | AC17: =IF($B$11="","",$B$11) ->  | AE17: E9 | AF17: =IF($B$9="","",$B$9) -> 73.992 | AH17: E8 | AI17: =IF($B$8="","",$B$8) -> 74.002 | AL17: =IF($D$7="","",$D$7) -> 74.021 | AO17: Ppu | AP17: =IF(AP9<>"",(AP13-AP9)/(3*AP14),"") -> 1.587637998 | BD17: 13 | BE17: 5 | BF17: =IF(data!E17<>"",data!E17,BF16) -> 73.992 | BG17: =IF(data!F17<>"",data!F17,BG16) -> 74.007 | BH17: =IF(data!G17<>"",data!G17,BH16) -> 74.015 | BI17: =IF(data!H17<>"",data!H17,BI16) -> 73.989 | BJ17: =IF(data!I17<>"",data!I17,BJ16) -> 74.014 | BL17: 74.05 | BM17: 73.95 | BN17: 73.99348405 | BO17: 74.01659595 | BP17: 73.9819281 | BQ17: 74.0281519 | BR17: 73.97037215 | BS17: 74.03970785 | BT17: 74.00504 | CE17: 13 | CF17: 74.004 | CG17: 13 | CH17: 0.4641448206 | CI17: 0.5358551794 | CJ17: 0.5358551794 | CK17: -34.7862501 | CL17: 0 | CN17: p3 | CO17: =IF(AND(CO12<0.34,CO12>=0.2),1-EXP(-8.318+42.796*CO12-59.938*CO12^2),0) -> 0.570351213
A18: 14 | L18: 5 | V18: 14 | W18: 74.005 | X18: 0 | Y18: 0 | AC18: =IF($C$11="","",$C$11) ->  | AF18: =IF($C$9="","",$C$9) -> 74.007 | AI18: =IF($C$8="","",$C$8) -> 73.996 | AL18: =IF($E$7="","",$E$7) -> 74.005 | AO18: Ppo | AP18: =IF(AP10<>"",(AP10-AP13)/(3*AP14),"") -> 1.296878713 | AR18: Konstanten | BD18: 14 | BE18: 5 | BF18: =IF(data!E18<>"",data!E18,BF17) -> 73.992 | BG18: =IF(data!F18<>"",data!F18,BG17) -> 74.007 | BH18: =IF(data!G18<>"",data!G18,BH17) -> 74.015 | BI18: =IF(data!H18<>"",data!H18,BI17) -> 73.989 | BJ18: =IF(data!I18<>"",data!I18,BJ17) -> 74.014 | BL18: 74.05 | BM18: 73.95 | BN18: 73.99348405 | BO18: 74.01659595 | BP18: 73.9819281 | BQ18: 74.0281519 | BR18: 73.97037215 | BS18: 74.03970785 | BT18: 74.00504 | BX18: Mittelwert | BY18: =Mittelwert -> 74.00504 | BZ18: 3 | CE18: 14 | CF18: 74.005 | CG18: 14 | CH18: 0.4986190859 | CI18: 0.5013809141 | CJ18: 0.6037508968 | CK18: -32.41367329 | CL18: 0.09884688422 | CN18: p4 | CO18: =IF(CO12<0.2,1-EXP(-13.436+101.14*CO12-223.73*CO12^2),0) -> 0
A19: 15 | L19: 5 | V19: 15 | W19: 74.002 | X19: 0 | Y19: 0 | AB19: E12 | AC19: =IF($B$12="","",$B$12) ->  | AF19: =IF($D$9="","",$D$9) -> 74.015 | AI19: =IF($D$8="","",$D$8) -> 73.993 | AL19: =IF($F$7="","",$F$7) -> 74.002 | AO19: Pp | AP19: =IF(OR(AP9="",AP10=""),"",(AP10-AP9)/(6*AP14)) -> 1.442258356 | AR19: n | AS19: A2 | AT19: D4 | AU19: D3 | AV19: d2 | BD19: 15 | BE19: 5 | BF19: =IF(data!E19<>"",data!E19,BF18) -> 73.992 | BG19: =IF(data!F19<>"",data!F19,BG18) -> 74.007 | BH19: =IF(data!G19<>"",data!G19,BH18) -> 74.015 | BI19: =IF(data!H19<>"",data!H19,BI18) -> 73.989 | BJ19: =IF(data!I19<>"",data!I19,BJ18) -> 74.014 | BL19: 74.05 | BM19: 73.95 | BN19: 73.99348405 | BO19: 74.01659595 | BP19: 73.9819281 | BQ19: 74.0281519 | BR19: 73.97037215 | BS19: 74.03970785 | BT19: 74.00504 | BX19: OGW | BY19: =OGW -> 74.05 | BZ19: 3 | CE19: 15 | CF19: 74.007 | CG19: 15 | CH19: 0.567341397 | CI19: 0.432658603 | CJ19: 0.6037508968 | CK19: -31.07024138 | CL19: 0.1986715438
A20: 16 | L20: 5 | V20: 16 | W20: 74.002 | X20: 0 | Y20: 0 | AC20: =IF($C$12="","",$C$12) ->  | AE20: E10 | AF20: =IF($B$10="","",$B$10) ->  | AI20: =IF($E$8="","",$E$8) -> 74.015 | AK20: E8 | AL20: =IF($B$8="","",$B$8) -> 74.002 | AO20: Ppk | AP20: =IF(AP10="",AP17,IF(AP9="",AP18,MIN(AP17,AP18))) -> 1.296878713 | AR20: 1 | AS20: 2.66 | AT20: 3.27 | AU20: 0 | AV20: 1.128 | BD20: 16 | BE20: 5 | BF20: =IF(data!E20<>"",data!E20,BF19) -> 73.992 | BG20: =IF(data!F20<>"",data!F20,BG19) -> 74.007 | BH20: =IF(data!G20<>"",data!G20,BH19) -> 74.015 | BI20: =IF(data!H20<>"",data!H20,BI19) -> 73.989 | BJ20: =IF(data!I20<>"",data!I20,BJ19) -> 74.014 | BL20: 74.05 | BM20: 73.95 | BN20: 73.99348405 | BO20: 74.01659595 | BP20: 73.9819281 | BQ20: 74.0281519 | BR20: 73.97037215 | BS20: 74.03970785 | BT20: 74.00504 | BX20: UGW | BY20: =UGW -> 73.95 | BZ20: 3 | CE20: 16 | CF20: 74.008 | CG20: 16 | CH20: 0.6010805845 | CI20: 0.3989194155 | CJ20: 0.6037508968 | CK20: -31.42221559 | CL20: 0.3005213318 | CN20: p Wert | CO20: =MAX(CO15:CO18) -> 0.570351213
A21: 17 | L21: 5 | V21: 17 | W21: 73.996 | X21: 0 | Y21: 0 | AB21: E13 | AC21: =IF($B$13="","",$B$13) ->  | AF21: =IF($C$10="","",$C$10) ->  | AH21: E9 | AI21: =IF($B$9="","",$B$9) -> 73.992 | AL21: =IF($C$8="","",$C$8) -> 73.996 | AR21: 2 | AS21: 1.88 | AT21: 3.27 | AU21: 0 | AV21: 1.128 | BD21: 17 | BE21: 5 | BF21: =IF(data!E21<>"",data!E21,BF20) -> 73.992 | BG21: =IF(data!F21<>"",data!F21,BG20) -> 74.007 | BH21: =IF(data!G21<>"",data!G21,BH20) -> 74.015 | BI21: =IF(data!H21<>"",data!H21,BI20) -> 73.989 | BJ21: =IF(data!I21<>"",data!I21,BJ20) -> 74.014 | BL21: 74.05 | BM21: 73.95 | BN21: 73.99348405 | BO21: 74.01659595 | BP21: 73.9819281 | BQ21: 74.0281519 | BR21: 73.97037215 | BS21: 74.03970785 | BT21: 74.00504 | BX21: Sollwert | BY21: =Sollwert -> 74 | BZ21: 3 | CE21: 17 | CF21: 74.009 | CG21: 17 | CH21: 0.634080605 | CI21: 0.365919395 | CJ21: 0.6366818401 | CK21: -29.93312552 | CL21: 0.4055961338
A22: 18 | L22: 5 | V22: 18 | W22: 73.993 | X22: 0 | Y22: 0 | AC22: =IF($C$13="","",$C$13) ->  | AF22: =IF($D$10="","",$D$10) ->  | AI22: =IF($C$9="","",$C$9) -> 74.007 | AL22: =IF($D$8="","",$D$8) -> 73.993 | AO22: Median z | AP22: =MEDIAN(xi) -> 74.004 | AR22: 3 | AS22: 1.023 | AT22: 2.575 | AU22: 0 | AV22: 1.693 | BD22: 18 | BE22: 5 | BF22: =IF(data!E22<>"",data!E22,BF21) -> 73.992 | BG22: =IF(data!F22<>"",data!F22,BG21) -> 74.007 | BH22: =IF(data!G22<>"",data!G22,BH21) -> 74.015 | BI22: =IF(data!H22<>"",data!H22,BI21) -> 73.989 | BJ22: =IF(data!I22<>"",data!I22,BJ21) -> 74.014 | BL22: 74.05 | BM22: 73.95 | BN22: =BN21 -> 73.99348405 | BO22: 74.01659595 | BP22: 73.9819281 | BQ22: 74.0281519 | BR22: 73.97037215 | BS22: 74.03970785 | BT22: 74.00504 | CE22: 18 | CF22: 74.011 | CG22: 18 | CH22: 0.6969860305 | CI22: 0.3030139695 | CJ22: 0.7829752648 | CK22: -21.19754296 | CL22: 0.5153632434
A23: 19 | L23: 5 | V23: 19 | W23: 74.015 | X23: 0 | Y23: 0 | AB23: E14 | AC23: =IF($B$14="","",$B$14) ->  | AE23: E11 | AF23: =IF($B$11="","",$B$11) ->  | AI23: =IF($D$9="","",$D$9) -> 74.015 | AL23: =IF($E$8="","",$E$8) -> 74.015 | AO23: Spannweite R | AP23: =Maximum-Minimum -> 0.042 | AR23: 4 | AS23: 0.729 | AT23: 2.282 | AU23: 0 | AV23: 2.059 | BD23: 19 | BE23: 5 | BF23: =IF(data!E23<>"",data!E23,BF22) -> 73.992 | BG23: =IF(data!F23<>"",data!F23,BG22) -> 74.007 | BH23: =IF(data!G23<>"",data!G23,BH22) -> 74.015 | BI23: =IF(data!H23<>"",data!H23,BI22) -> 73.989 | BJ23: =IF(data!I23<>"",data!I23,BJ22) -> 74.014 | BL23: 74.05 | BM23: 73.95 | BN23: 73.99348405 | BO23: 74.01659595 | BP23: 73.9819281 | BQ23: 74.0281519 | BR23: 73.97037215 | BS23: 74.03970785 | BT23: 74.00504 | CE23: 19 | CF23: 74.014 | CG23: 19 | CH23: 0.7809359443 | CI23: 0.2190640557 | CJ23: 0.8075262384 | CK23: -17.0585496 | CL23: 0.6317365277
A24: 20 | L24: 5 | V24: 20 | W24: 74.009 | X24: 0 | Y24: 0 | AC24: =IF($C$14="","",$C$14) ->  | AF24: =IF($C$11="","",$C$11) ->  | AI24: =IF($E$9="","",$E$9) -> 73.989 | AL24: =IF($F$8="","",$F$8) -> 74.009 | AO24: Minimum | AP24: =MIN(xi) -> 73.988 | AR24: 5 | AS24: 0.577 | AT24: 2.115 | AU24: 0 | AV24: 2.326 | BD24: 20 | BE24: 5 | BF24: =IF(data!E24<>"",data!E24,BF23) -> 73.992 | BG24: =IF(data!F24<>"",data!F24,BG23) -> 74.007 | BH24: =IF(data!G24<>"",data!G24,BH23) -> 74.015 | BI24: =IF(data!H24<>"",data!H24,BI23) -> 73.989 | BJ24: =IF(data!I24<>"",data!I24,BJ23) -> 74.014 | BL24: 74.05 | BM24: 73.95 | BN24: 73.99348405 | BO24: 74.01659595 | BP24: 73.9819281 | BQ24: 74.0281519 | BR24: 73.97037215 | BS24: 74.03970785 | BT24: 74.00504 | CE24: 20 | CF24: 74.015 | CG24: 20 | CH24: 0.8056269526 | CI24: 0.1943730474 | CJ24: 0.8512680751 | CK24: -14.70934412 | CL24: 0.7573855717
A25: 21 | L25: 5 | V25: 21 | W25: 73.992 | X25: 0 | Y25: 0 | AB25: E15 | AC25: =IF($B$15="","",$B$15) ->  | AF25: =IF($D$11="","",$D$11) ->  | AH25: E10 | AI25: =IF($B$10="","",$B$10) ->  | AK25: E9 | AL25: =IF($B$9="","",$B$9) -> 73.992 | AO25: Maximum | AP25: =MAX(xi) -> 74.03 | BD25: 21 | BE25: 5 | BF25: =IF(data!E25<>"",data!E25,BF24) -> 73.992 | BG25: =IF(data!F25<>"",data!F25,BG24) -> 74.007 | BH25: =IF(data!G25<>"",data!G25,BH24) -> 74.015 | BI25: =IF(data!H25<>"",data!H25,BI24) -> 73.989 | BJ25: =IF(data!I25<>"",data!I25,BJ24) -> 74.014 | BL25: 74.05 | BM25: 73.95 | BN25: 73.99348405 | BO25: 74.01659595 | BP25: 73.9819281 | BQ25: 74.0281519 | BR25: 73.97037215 | BS25: 74.03970785 | BT25: 74.00504 | CE25: 21 | CF25: 74.015 | CG25: 21 | CH25: 0.8056269526 | CI25: 0.1943730474 | CJ25: 0.8704293374 | CK25: -14.55103036 | CL25: 0.8963258813
A26: 22 | L26: 5 | V26: 22 | W26: 74.007 | X26: 0 | Y26: 0 | AC26: =IF($C$15="","",$C$15) ->  | AE26: E12 | AF26: =IF($B$12="","",$B$12) ->  | AI26: =IF($C$10="","",$C$10) ->  | AL26: =IF($C$9="","",$C$9) -> 74.007 | BD26: 22 | BE26: 5 | BF26: =IF(data!E26<>"",data!E26,BF25) -> 73.992 | BG26: =IF(data!F26<>"",data!F26,BG25) -> 74.007 | BH26: =IF(data!G26<>"",data!G26,BH25) -> 74.015 | BI26: =IF(data!H26<>"",data!H26,BI25) -> 73.989 | BJ26: =IF(data!I26<>"",data!I26,BJ25) -> 74.014 | BL26: 74.05 | BM26: 73.95 | BN26: 73.99348405 | BO26: 74.01659595 | BP26: 73.9819281 | BQ26: 74.0281519 | BR26: 73.97037215 | BS26: 74.03970785 | BT26: 74.00504 | CE26: 22 | CF26: 74.019 | CG26: 22 | CH26: 0.8864832052 | CI26: 0.1135167948 | CJ26: 0.8704293374 | CK26: -11.14825725 | CL26: 1.055189681
A27: 23 | L27: 5 | V27: 23 | W27: 74.015 | X27: 0 | Y27: 0 | AB27: E16 | AC27: =IF($B$16="","",$B$16) ->  | AF27: =IF($C$12="","",$C$12) ->  | AI27: =IF($D$10="","",$D$10) ->  | AL27: =IF($D$9="","",$D$9) -> 74.015 | AP27: Berechnete Leistung in ppm | BD27: 23 | BE27: 5 | BF27: =IF(data!E27<>"",data!E27,BF26) -> 73.992 | BG27: =IF(data!F27<>"",data!F27,BG26) -> 74.007 | BH27: =IF(data!G27<>"",data!G27,BH26) -> 74.015 | BI27: =IF(data!H27<>"",data!H27,BI26) -> 73.989 | BJ27: =IF(data!I27<>"",data!I27,BJ26) -> 74.014 | BL27: 74.05 | BM27: 73.95 | BN27: 73.99348405 | BO27: 74.01659595 | BP27: 73.9819281 | BQ27: 74.0281519 | BR27: 73.97037215 | BS27: 74.03970785 | BT27: 74.00504 | CE27: 23 | CF27: 74.021 | CG27: 23 | CH27: 0.9163768969 | CI27: 0.08362310309 | CJ27: 0.8704293374 | CK27: -10.17433068 | CL27: 1.246452206
A28: 24 | L28: 5 | V28: 24 | W28: 73.989 | X28: 0 | Y28: 0 | AC28: =IF($C$16="","",$C$16) ->  | AF28: =IF($D$12="","",$D$12) ->  | AI28: =IF($E$10="","",$E$10) ->  | AL28: =IF($E$9="","",$E$9) -> 73.989 | AO28: Überschreitungsanteil pUGW | AP28: =IF(AP9="",0,NORMDIST(UGW,Mittelwert,Standardabweichung,1)*1000000) -> 0.9540859231 | BD28: 24 | BE28: 5 | BF28: =IF(data!E28<>"",data!E28,BF27) -> 73.992 | BG28: =IF(data!F28<>"",data!F28,BG27) -> 74.007 | BH28: =IF(data!G28<>"",data!G28,BH27) -> 74.015 | BI28: =IF(data!H28<>"",data!H28,BI27) -> 73.989 | BJ28: =IF(data!I28<>"",data!I28,BJ27) -> 74.014 | BL28: 74.05 | BM28: 73.95 | BN28: 73.99348405 | BO28: 74.01659595 | BP28: 73.9819281 | BQ28: 74.0281519 | BR28: 73.97037215 | BS28: 74.03970785 | BT28: 74.00504 | CE28: 24 | CF28: 74.024 | CG28: 24 | CH28: 0.9495714984 | CI28: 0.05042850161 | CJ28: 0.9174359699 | CK28: -6.482096158 | CL28: 1.499059227
A29: 25 | L29: 5 | V29: 25 | W29: 74.014 | X29: 0 | Y29: 0 | AB29: E17 | AC29: =IF($B$17="","",$B$17) ->  | AE29: E13 | AF29: =IF($B$13="","",$B$13) ->  | AH29: E11 | AI29: =IF($B$11="","",$B$11) ->  | AL29: =IF($F$9="","",$F$9) -> 74.014 | AO29: Überschreitungsanteil pOGW | AP29: =IF(AP10="",0,(1-NORMDIST(OGW,Mittelwert,Standardabweichung,1))*1000000) -> 49.99088144 | BD29: 25 | BE29: 5 | BF29: =IF(data!E29<>"",data!E29,BF28) -> 73.992 | BG29: =IF(data!F29<>"",data!F29,BG28) -> 74.007 | BH29: =IF(data!G29<>"",data!G29,BH28) -> 74.015 | BI29: =IF(data!H29<>"",data!H29,BI28) -> 73.989 | BJ29: =IF(data!I29<>"",data!I29,BJ28) -> 74.014 | BL29: 74.05 | BM29: 73.95 | BN29: 73.99348405 | BO29: 74.01659595 | BP29: 73.9819281 | BQ29: 74.0281519 | BR29: 73.97037215 | BS29: 74.03970785 | BT29: 74.00504 | CE29: 25 | CF29: 74.03 | CG29: 25 | CH29: 0.9846107951 | CI29: 0.01538920494 | CJ29: 0.9298352371 | CK29: -4.324579318 | CL29: 1.917944016
A30: 26 | L30: 5 | V30: 26 | AC30: =IF($C$17="","",$C$17) ->  | AF30: =IF($C$13="","",$C$13) ->  | AI30: =IF($C$11="","",$C$11) ->  | AK30: E10 | AL30: =IF($B$10="","",$B$10) ->  | AO30: Überschreitungsanteil p | AP30: =BERPOGW+BERPUGW -> 50.94496736 | BD30: 26 | BE30: 5 | BF30: =IF(data!E30<>"",data!E30,BF29) -> 73.992 | BG30: =IF(data!F30<>"",data!F30,BG29) -> 74.007 | BH30: =IF(data!G30<>"",data!G30,BH29) -> 74.015 | BI30: =IF(data!H30<>"",data!H30,BI29) -> 73.989 | BJ30: =IF(data!I30<>"",data!I30,BJ29) -> 74.014 | BL30: 74.05 | BM30: 73.95 | BN30: 73.99348405 | BO30: 74.01659595 | BP30: 73.9819281 | BQ30: 74.0281519 | BR30: 73.97037215 | BS30: 74.03970785 | BT30: 74.00504 | CE30: 26
A31: 27 | L31: 5 | V31: 27 | AB31: E18 | AC31: =IF($B$18="","",$B$18) ->  | AF31: =IF($D$13="","",$D$13) ->  | AI31: =IF($D$11="","",$D$11) ->  | AL31: =IF($C$10="","",$C$10) ->  | BD31: 27 | BE31: 5 | BF31: =IF(data!E31<>"",data!E31,BF30) -> 73.992 | BG31: =IF(data!F31<>"",data!F31,BG30) -> 74.007 | BH31: =IF(data!G31<>"",data!G31,BH30) -> 74.015 | BI31: =IF(data!H31<>"",data!H31,BI30) -> 73.989 | BJ31: =IF(data!I31<>"",data!I31,BJ30) -> 74.014 | BL31: 74.05 | BM31: 73.95 | BN31: 73.99348405 | BO31: 74.01659595 | BP31: 73.9819281 | BQ31: 74.0281519 | BR31: 73.97037215 | BS31: 74.03970785 | BT31: 74.00504 | CE31: 27
A32: 28 | L32: 5 | V32: 28 | AC32: =IF($C$18="","",$C$18) ->  | AE32: E14 | AF32: =IF($B$14="","",$B$14) ->  | AI32: =IF($E$11="","",$E$11) ->  | AL32: =IF($D$10="","",$D$10) ->  | AP32: Beobachtete Leistung in ppm | BD32: 28 | BE32: 5 | BF32: =IF(data!E32<>"",data!E32,BF31) -> 73.992 | BG32: =IF(data!F32<>"",data!F32,BG31) -> 74.007 | BH32: =IF(data!G32<>"",data!G32,BH31) -> 74.015 | BI32: =IF(data!H32<>"",data!H32,BI31) -> 73.989 | BJ32: =IF(data!I32<>"",data!I32,BJ31) -> 74.014 | BL32: 74.05 | BM32: 73.95 | BN32: 73.99348405 | BO32: 74.01659595 | BP32: 73.9819281 | BQ32: 74.0281519 | BR32: 73.97037215 | BS32: 74.03970785 | BT32: 74.00504 | CE32: 28
A33: 29 | L33: 5 | V33: 29 | AB33: E19 | AC33: =IF($B$19="","",$B$19) ->  | AF33: =IF($C$14="","",$C$14) ->  | AH33: E12 | AI33: =IF($B$12="","",$B$12) ->  | AL33: =IF($E$10="","",$E$10) ->  | AO33: Überschreitungsanteil pUGW | AP33: =IF(AP9="",0,AnzahlWertekleinerUGW/AP12*1000000) -> 0 | BD33: 29 | BE33: 5 | BF33: =IF(data!E33<>"",data!E33,BF32) -> 73.992 | BG33: =IF(data!F33<>"",data!F33,BG32) -> 74.007 | BH33: =IF(data!G33<>"",data!G33,BH32) -> 74.015 | BI33: =IF(data!H33<>"",data!H33,BI32) -> 73.989 | BJ33: =IF(data!I33<>"",data!I33,BJ32) -> 74.014 | BL33: 74.05 | BM33: 73.95 | BN33: 73.99348405 | BO33: 74.01659595 | BP33: 73.9819281 | BQ33: 74.0281519 | BR33: 73.97037215 | BS33: 74.03970785 | BT33: 74.00504 | CE33: 29
A34: 30 | L34: 5 | V34: 30 | AC34: =IF($C$19="","",$C$19) ->  | AF34: =IF($D$14="","",$D$14) ->  | AI34: =IF($C$12="","",$C$12) ->  | AL34: =IF($F$10="","",$F$10) ->  | AO34: Überschreitungsanteil pOGW | AP34: =IF(AP10="",0,AnzahlWertegroesserOGW/AP12*1000000) -> 0 | BD34: 30 | BE34: 5 | BF34: =IF(data!E34<>"",data!E34,BF33) -> 73.992 | BG34: =IF(data!F34<>"",data!F34,BG33) -> 74.007 | BH34: =IF(data!G34<>"",data!G34,BH33) -> 74.015 | BI34: =IF(data!H34<>"",data!H34,BI33) -> 73.989 | BJ34: =IF(data!I34<>"",data!I34,BJ33) -> 74.014 | BL34: 74.05 | BM34: 73.95 | BN34: 73.99348405 | BO34: 74.01659595 | BP34: 73.9819281 | BQ34: 74.0281519 | BR34: 73.97037215 | BS34: 74.03970785 | BT34: 74.00504 | CE34: 30
A35: 31 | L35: 5 | V35: 31 | AB35: E20 | AC35: =IF($B$20="","",$B$20) ->  | AE35: E15 | AF35: =IF($B$15="","",$B$15) ->  | AI35: =IF($D$12="","",$D$12) ->  | AK35: E11 | AL35: =IF($B$11="","",$B$11) ->  | AO35: Überschreitungsanteil p | AP35: =AP34+AP33 -> 0 | BD35: 31 | BE35: 5 | BF35: =IF(data!E35<>"",data!E35,BF34) -> 73.992 | BG35: =IF(data!F35<>"",data!F35,BG34) -> 74.007 | BH35: =IF(data!G35<>"",data!G35,BH34) -> 74.015 | BI35: =IF(data!H35<>"",data!H35,BI34) -> 73.989 | BJ35: =IF(data!I35<>"",data!I35,BJ34) -> 74.014 | BL35: 74.05 | BM35: 73.95 | BN35: 73.99348405 | BO35: 74.01659595 | BP35: 73.9819281 | BQ35: 74.0281519 | BR35: 73.97037215 | BS35: 74.03970785 | BT35: 74.00504 | CE35: 31
A36: 32 | L36: 5 | V36: 32 | AC36: =IF($C$20="","",$C$20) ->  | AF36: =IF($C$15="","",$C$15) ->  | AI36: =IF($E$12="","",$E$12) ->  | AL36: =IF($C$11="","",$C$11) ->  | BD36: 32 | BE36: 5 | BF36: =IF(data!E36<>"",data!E36,BF35) -> 73.992 | BG36: =IF(data!F36<>"",data!F36,BG35) -> 74.007 | BH36: =IF(data!G36<>"",data!G36,BH35) -> 74.015 | BI36: =IF(data!H36<>"",data!H36,BI35) -> 73.989 | BJ36: =IF(data!I36<>"",data!I36,BJ35) -> 74.014 | BL36: 74.05 | BM36: 73.95 | BN36: 73.99348405 | BO36: 74.01659595 | BP36: 73.9819281 | BQ36: 74.0281519 | BR36: 73.97037215 | BS36: 74.03970785 | BT36: 74.00504 | CE36: 32
A37: 33 | L37: 5 | M37: =IF(H37="",NA(),xquerquer) ->  | N37: =IF(H37="",NA(),H37) ->  | O37: =IF(H37="",NA(),xquerquer+(Azwei*Rquer)) ->  | P37: =IF(H37="",NA(),xquerquer-(Azwei*Rquer)) ->  | Q37: =IF(H37="",NA(),Rquer) ->  | S37: =IF(H37="",NA(),Dvier*Rquer) ->  | V37: 33 | AB37: E21 | AC37: =IF($B$21="","",$B$21) ->  | AF37: =IF($D$15="","",$D$15) ->  | AH37: E13 | AI37: =IF($B$13="","",$B$13) ->  | AL37: =IF($D$11="","",$D$11) ->  | BD37: 33 | BE37: =IF((AnzahlderStichproben>BD37),BD37,AnzahlderStichproben) -> 5 | BF37: =IF(data!E37<>"",data!E37,BF36) -> 73.992 | BG37: =IF(data!F37<>"",data!F37,BG36) -> 74.007 | BH37: =IF(data!G37<>"",data!G37,BH36) -> 74.015 | BI37: =IF(data!H37<>"",data!H37,BI36) -> 73.989 | BJ37: =IF(data!I37<>"",data!I37,BJ36) -> 74.014 | BL37: =IF($AP$10="",#N/A,IF(W37<>"",OGW,BL36)) -> 74.05 | BM37: 73.95 | BN37: 73.99348405 | BO37: 74.01659595 | BP37: 73.9819281 | BQ37: 74.0281519 | BR37: 73.97037215 | BS37: 74.03970785 | BT37: 74.00504 | CE37: 33 | CI37: =IF(W37="","",1-CH37) ->  | CK37: =IF(W37="","",(2*CG37-1)*(LN(CJ37)+LN(CH37))) -> 
A38: 34 | L38: 5 | V38: 34 | AC38: =IF($C$21="","",$C$21) ->  | AE38: E16 | AF38: =IF($B$16="","",$B$16) ->  | AI38: =IF($C$13="","",$C$13) ->  | AL38: =IF($E$11="","",$E$11) ->  | AQ38: entsprechendes A2 | AR38: entsprechendes D4 | AS38: entsprechendes D2 | BD38: 34 | BE38: 5 | BF38: =IF(data!E38<>"",data!E38,BF37) -> 73.992 | BG38: =IF(data!F38<>"",data!F38,BG37) -> 74.007 | BH38: =IF(data!G38<>"",data!G38,BH37) -> 74.015 | BI38: =IF(data!H38<>"",data!H38,BI37) -> 73.989 | BJ38: =IF(data!I38<>"",data!I38,BJ37) -> 74.014 | BL38: 74.05 | BM38: 73.95 | BN38: =BN37 -> 73.99348405 | BO38: 74.01659595 | BP38: 73.9819281 | BQ38: 74.0281519 | BR38: 73.97037215 | BS38: 74.03970785 | BT38: 74.00504 | CE38: 34 | CG38: =IF(W38="","",1+CG37) -> 
A39: 35 | L39: 5 | V39: 35 | AB39: E22 | AC39: =IF($B$22="","",$B$22) ->  | AF39: =IF($C$16="","",$C$16) ->  | AI39: =IF($D$13="","",$D$13) ->  | AL39: =IF($F$11="","",$F$11) ->  | AO39: Umfang der Stichprobe | AP39: =COUNT(calculation!B5:F5) -> 5 | AQ39: =VLOOKUP(AP39,AR20:AS24,2,FALSE) -> 0.577 | AR39: =VLOOKUP(AP39,AR20:AT24,3,FALSE) -> 2.115 | AS39: =VLOOKUP(AP39,AR20:AV24,5,FALSE) -> 2.326 | BD39: 35 | BE39: 5 | BF39: =IF(data!E39<>"",data!E39,BF38) -> 73.992 | BG39: =IF(data!F39<>"",data!F39,BG38) -> 74.007 | BH39: =IF(data!G39<>"",data!G39,BH38) -> 74.015 | BI39: =IF(data!H39<>"",data!H39,BI38) -> 73.989 | BJ39: =IF(data!I39<>"",data!I39,BJ38) -> 74.014 | BL39: 74.05 | BM39: 73.95 | BN39: 73.99348405 | BO39: 74.01659595 | BP39: 73.9819281 | BQ39: 74.0281519 | BR39: 73.97037215 | BS39: 74.03970785 | BT39: 74.00504 | CE39: 35
A40: 36 | L40: 5 | V40: 36 | AC40: =IF($C$22="","",$C$22) ->  | AF40: =IF($D$16="","",$D$16) ->  | AI40: =IF($E$13="","",$E$13) ->  | AK40: E12 | AL40: =IF($B$12="","",$B$12) ->  | AO40: Anzahl der Stichproben | AP40: =COUNT(B5:B54) -> 5 | BD40: 36 | BE40: 5 | BF40: =IF(data!E40<>"",data!E40,BF39) -> 73.992 | BG40: =IF(data!F40<>"",data!F40,BG39) -> 74.007 | BH40: =IF(data!G40<>"",data!G40,BH39) -> 74.015 | BI40: =IF(data!H40<>"",data!H40,BI39) -> 73.989 | BJ40: =IF(data!I40<>"",data!I40,BJ39) -> 74.014 | BL40: 74.05 | BM40: 73.95 | BN40: 73.99348405 | BO40: 74.01659595 | BP40: 73.9819281 | BQ40: 74.0281519 | BR40: 73.97037215 | BS40: 74.03970785 | BT40: 74.00504 | CE40: 36
A41: 37 | L41: 5 | V41: 37 | AB41: E23 | AC41: =IF($B$23="","",$B$23) ->  | AE41: E17 | AF41: =IF($B$17="","",$B$17) ->  | AH41: E14 | AI41: =IF($B$14="","",$B$14) ->  | AL41: =IF($C$12="","",$C$12) ->  | AO41: Fähigkeitswerte innerhalb | BD41: 37 | BE41: 5 | BF41: =IF(data!E41<>"",data!E41,BF40) -> 73.992 | BG41: =IF(data!F41<>"",data!F41,BG40) -> 74.007 | BH41: =IF(data!G41<>"",data!G41,BH40) -> 74.015 | BI41: =IF(data!H41<>"",data!H41,BI40) -> 73.989 | BJ41: =IF(data!I41<>"",data!I41,BJ40) -> 74.014 | BL41: 74.05 | BM41: 73.95 | BN41: 73.99348405 | BO41: 74.01659595 | BP41: 73.9819281 | BQ41: 74.0281519 | BR41: 73.97037215 | BS41: 74.03970785 | BT41: 74.00504 | CE41: 37
A42: 38 | L42: 5 | V42: 38 | AC42: =IF($C$23="","",$C$23) ->  | AF42: =IF($C$17="","",$C$17) ->  | AI42: =IF($C$14="","",$C$14) ->  | AL42: =IF($D$12="","",$D$12) ->  | AO42: Standardabweichung innerhalb | AP42: =AVERAGE(Range) -> 0.0282 | BD42: 38 | BE42: 5 | BF42: =IF(data!E42<>"",data!E42,BF41) -> 73.992 | BG42: =IF(data!F42<>"",data!F42,BG41) -> 74.007 | BH42: =IF(data!G42<>"",data!G42,BH41) -> 74.015 | BI42: =IF(data!H42<>"",data!H42,BI41) -> 73.989 | BJ42: =IF(data!I42<>"",data!I42,BJ41) -> 74.014 | BL42: 74.05 | BM42: 73.95 | BN42: 73.99348405 | BO42: 74.01659595 | BP42: 73.9819281 | BQ42: 74.0281519 | BR42: 73.97037215 | BS42: 74.03970785 | BT42: 74.00504 | CE42: 38
A43: 39 | L43: 5 | V43: 39 | AB43: E24 | AC43: =IF($B$24="","",$B$24) ->  | AF43: =IF($D$17="","",$D$17) ->  | AI43: =IF($D$14="","",$D$14) ->  | AL43: =IF($E$12="","",$E$12) ->  | AO43: entsprechendes d2 | AP43: =AS39 -> 2.326 | BD43: 39 | BE43: 5 | BF43: =IF(data!E43<>"",data!E43,BF42) -> 73.992 | BG43: =IF(data!F43<>"",data!F43,BG42) -> 74.007 | BH43: =IF(data!G43<>"",data!G43,BH42) -> 74.015 | BI43: =IF(data!H43<>"",data!H43,BI42) -> 73.989 | BJ43: =IF(data!I43<>"",data!I43,BJ42) -> 74.014 | BL43: 74.05 | BM43: 73.95 | BN43: 73.99348405 | BO43: 74.01659595 | BP43: 73.9819281 | BQ43: 74.0281519 | BR43: 73.97037215 | BS43: 74.03970785 | BT43: 74.00504 | CE43: 39
A44: 40 | L44: 5 | V44: 40 | AC44: =IF($C$24="","",$C$24) ->  | AE44: E18 | AF44: =IF($B$18="","",$B$18) ->  | AI44: =IF($E$14="","",$E$14) ->  | AL44: =IF($F$12="","",$F$12) ->  | AO44: Standardabweichung innerhalb | AP44: =AP42/AP43 -> 0.01212381771 | BD44: 40 | BE44: 5 | BF44: =IF(data!E44<>"",data!E44,BF43) -> 73.992 | BG44: =IF(data!F44<>"",data!F44,BG43) -> 74.007 | BH44: =IF(data!G44<>"",data!G44,BH43) -> 74.015 | BI44: =IF(data!H44<>"",data!H44,BI43) -> 73.989 | BJ44: =IF(data!I44<>"",data!I44,BJ43) -> 74.014 | BL44: 74.05 | BM44: 73.95 | BN44: 73.99348405 | BO44: 74.01659595 | BP44: 73.9819281 | BQ44: 74.0281519 | BR44: 73.97037215 | BS44: 74.03970785 | BT44: 74.00504 | CE44: 40
A45: 41 | L45: 5 | V45: 41 | AB45: E25 | AC45: =IF($B$25="","",$B$25) ->  | AF45: =IF($C$18="","",$C$18) ->  | AH45: E15 | AI45: =IF($B$15="","",$B$15) ->  | AK45: E13 | AL45: =IF($B$13="","",$B$13) ->  | BD45: 41 | BE45: 5 | BF45: =IF(data!E45<>"",data!E45,BF44) -> 73.992 | BG45: =IF(data!F45<>"",data!F45,BG44) -> 74.007 | BH45: =IF(data!G45<>"",data!G45,BH44) -> 74.015 | BI45: =IF(data!H45<>"",data!H45,BI44) -> 73.989 | BJ45: =IF(data!I45<>"",data!I45,BJ44) -> 74.014 | BL45: 74.05 | BM45: 73.95 | BN45: 73.99348405 | BO45: 74.01659595 | BP45: 73.9819281 | BQ45: 74.0281519 | BR45: 73.97037215 | BS45: 74.03970785 | BT45: 74.00504 | CE45: 41
A46: 42 | L46: 5 | V46: 42 | AC46: =IF($C$25="","",$C$25) ->  | AF46: =IF($D$18="","",$D$18) ->  | AI46: =IF($C$15="","",$C$15) ->  | AL46: =IF($C$13="","",$C$13) ->  | AO46: Cp | AP46: =IF(OR(AP9="",AP10=""),"",(AP10-AP9)/(6*AP44)) -> 1.374704492 | BD46: 42 | BE46: 5 | BF46: =IF(data!E46<>"",data!E46,BF45) -> 73.992 | BG46: =IF(data!F46<>"",data!F46,BG45) -> 74.007 | BH46: =IF(data!G46<>"",data!G46,BH45) -> 74.015 | BI46: =IF(data!H46<>"",data!H46,BI45) -> 73.989 | BJ46: =IF(data!I46<>"",data!I46,BJ45) -> 74.014 | BL46: 74.05 | BM46: 73.95 | BN46: 73.99348405 | BO46: 74.01659595 | BP46: 73.9819281 | BQ46: 74.0281519 | BR46: 73.97037215 | BS46: 74.03970785 | BT46: 74.00504 | CE46: 42
A47: 43 | L47: 5 | V47: 43 | AB47: E26 | AC47: =IF($B$26="","",$B$26) ->  | AE47: E19 | AF47: =IF($B$19="","",$B$19) ->  | AI47: =IF($D$15="","",$D$15) ->  | AL47: =IF($D$13="","",$D$13) ->  | AO47: CPL | AP47: =IF(AP9<>"",(Mittelwert-AP9)/(3*AP44),"") -> 1.513274704 | BD47: 43 | BE47: 5 | BF47: =IF(data!E47<>"",data!E47,BF46) -> 73.992 | BG47: =IF(data!F47<>"",data!F47,BG46) -> 74.007 | BH47: =IF(data!G47<>"",data!G47,BH46) -> 74.015 | BI47: =IF(data!H47<>"",data!H47,BI46) -> 73.989 | BJ47: =IF(data!I47<>"",data!I47,BJ46) -> 74.014 | BL47: 74.05 | BM47: 73.95 | BN47: 73.99348405 | BO47: 74.01659595 | BP47: 73.9819281 | BQ47: 74.0281519 | BR47: 73.97037215 | BS47: 74.03970785 | BT47: 74.00504 | CE47: 43
A48: 44 | L48: 5 | V48: 44 | AC48: =IF($C$26="","",$C$26) ->  | AF48: =IF($C$19="","",$C$19) ->  | AI48: =IF($E$15="","",$E$15) ->  | AL48: =IF($E$13="","",$E$13) ->  | AO48: CPU | AP48: =IF(AP10<>"",(AP10-Mittelwert)/(3*AP44),"") -> 1.236134279 | BD48: 44 | BE48: 5 | BF48: =IF(data!E48<>"",data!E48,BF47) -> 73.992 | BG48: =IF(data!F48<>"",data!F48,BG47) -> 74.007 | BH48: =IF(data!G48<>"",data!G48,BH47) -> 74.015 | BI48: =IF(data!H48<>"",data!H48,BI47) -> 73.989 | BJ48: =IF(data!I48<>"",data!I48,BJ47) -> 74.014 | BL48: 74.05 | BM48: 73.95 | BN48: 73.99348405 | BO48: 74.01659595 | BP48: 73.9819281 | BQ48: 74.0281519 | BR48: 73.97037215 | BS48: 74.03970785 | BT48: 74.00504 | CE48: 44
A49: 45 | L49: 5 | V49: 45 | AB49: E27 | AC49: =IF($B$27="","",$B$27) ->  | AF49: =IF($D$19="","",$D$19) ->  | AH49: E16 | AI49: =IF($B$16="","",$B$16) ->  | AL49: =IF($F$13="","",$F$13) ->  | AO49: CPK | AP49: =MIN(AP47:AP48) -> 1.236134279 | BD49: 45 | BE49: 5 | BF49: =IF(data!E49<>"",data!E49,BF48) -> 73.992 | BG49: =IF(data!F49<>"",data!F49,BG48) -> 74.007 | BH49: =IF(data!G49<>"",data!G49,BH48) -> 74.015 | BI49: =IF(data!H49<>"",data!H49,BI48) -> 73.989 | BJ49: =IF(data!I49<>"",data!I49,BJ48) -> 74.014 | BL49: 74.05 | BM49: 73.95 | BN49: 73.99348405 | BO49: 74.01659595 | BP49: 73.9819281 | BQ49: 74.0281519 | BR49: 73.97037215 | BS49: 74.03970785 | BT49: 74.00504 | CE49: 45
A50: 46 | L50: 5 | V50: 46 | AC50: =IF($C$27="","",$C$27) ->  | AE50: E20 | AF50: =IF($B$20="","",$B$20) ->  | AI50: =IF($C$16="","",$C$16) ->  | AK50: E14 | AL50: =IF($B$14="","",$B$14) ->  | BD50: 46 | BE50: 5 | BF50: =IF(data!E50<>"",data!E50,BF49) -> 73.992 | BG50: =IF(data!F50<>"",data!F50,BG49) -> 74.007 | BH50: =IF(data!G50<>"",data!G50,BH49) -> 74.015 | BI50: =IF(data!H50<>"",data!H50,BI49) -> 73.989 | BJ50: =IF(data!I50<>"",data!I50,BJ49) -> 74.014 | BL50: 74.05 | BM50: 73.95 | BN50: 73.99348405 | BO50: 74.01659595 | BP50: 73.9819281 | BQ50: 74.0281519 | BR50: 73.97037215 | BS50: 74.03970785 | BT50: 74.00504 | CE50: 46
A51: 47 | L51: 5 | V51: 47 | AB51: E28 | AC51: =IF($B$28="","",$B$28) ->  | AF51: =IF($C$20="","",$C$20) ->  | AI51: =IF($D$16="","",$D$16) ->  | AL51: =IF($C$14="","",$C$14) ->  | BD51: 47 | BE51: 5 | BF51: =IF(data!E51<>"",data!E51,BF50) -> 73.992 | BG51: =IF(data!F51<>"",data!F51,BG50) -> 74.007 | BH51: =IF(data!G51<>"",data!G51,BH50) -> 74.015 | BI51: =IF(data!H51<>"",data!H51,BI50) -> 73.989 | BJ51: =IF(data!I51<>"",data!I51,BJ50) -> 74.014 | BL51: 74.05 | BM51: 73.95 | BN51: 73.99348405 | BO51: 74.01659595 | BP51: 73.9819281 | BQ51: 74.0281519 | BR51: 73.97037215 | BS51: 74.03970785 | BT51: 74.00504 | CE51: 47
A52: 48 | L52: 5 | V52: 48 | AC52: =IF($C$28="","",$C$28) ->  | AF52: =IF($D$20="","",$D$20) ->  | AI52: =IF($E$16="","",$E$16) ->  | AL52: =IF($D$14="","",$D$14) ->  | BD52: 48 | BE52: 5 | BF52: =IF(data!E52<>"",data!E52,BF51) -> 73.992 | BG52: =IF(data!F52<>"",data!F52,BG51) -> 74.007 | BH52: =IF(data!G52<>"",data!G52,BH51) -> 74.015 | BI52: =IF(data!H52<>"",data!H52,BI51) -> 73.989 | BJ52: =IF(data!I52<>"",data!I52,BJ51) -> 74.014 | BL52: 74.05 | BM52: 73.95 | BN52: 73.99348405 | BO52: 74.01659595 | BP52: 73.9819281 | BQ52: 74.0281519 | BR52: 73.97037215 | BS52: 74.03970785 | BT52: 74.00504 | CE52: 48
A53: 49 | L53: 5 | V53: 49 | AB53: E29 | AC53: =IF($B$29="","",$B$29) ->  | AE53: E21 | AF53: =IF($B$21="","",$B$21) ->  | AH53: E17 | AI53: =IF($B$17="","",$B$17) ->  | AL53: =IF($E$14="","",$E$14) ->  | BD53: 49 | BE53: 5 | BF53: =IF(data!E53<>"",data!E53,BF52) -> 73.992 | BG53: =IF(data!F53<>"",data!F53,BG52) -> 74.007 | BH53: =IF(data!G53<>"",data!G53,BH52) -> 74.015 | BI53: =IF(data!H53<>"",data!H53,BI52) -> 73.989 | BJ53: =IF(data!I53<>"",data!I53,BJ52) -> 74.014 | BL53: 74.05 | BM53: 73.95 | BN53: 73.99348405 | BO53: 74.01659595 | BP53: 73.9819281 | BQ53: 74.0281519 | BR53: 73.97037215 | BS53: 74.03970785 | BT53: 74.00504 | CE53: 49
A54: 50 | L54: 5 | V54: 50 | AC54: =IF($C$29="","",$C$29) ->  | AF54: =IF($C$21="","",$C$21) ->  | AI54: =IF($C$17="","",$C$17) ->  | AL54: =IF($F$14="","",$F$14) ->  | BD54: 50 | BE54: 5 | BF54: =IF(data!E54<>"",data!E54,BF53) -> 73.992 | BG54: =IF(data!F54<>"",data!F54,BG53) -> 74.007 | BH54: =IF(data!G54<>"",data!G54,BH53) -> 74.015 | BI54: =IF(data!H54<>"",data!H54,BI53) -> 73.989 | BJ54: =IF(data!I54<>"",data!I54,BJ53) -> 74.014 | BL54: 74.05 | BM54: 73.95 | BN54: =BN53 -> 73.99348405 | BO54: 74.01659595 | BP54: 73.9819281 | BQ54: 74.0281519 | BR54: 73.97037215 | BS54: 74.03970785 | BT54: 74.00504 | CE54: 50
B55: =IF(data!E55="","",data!E55) ->  | C55: =IF(data!F55="","",data!F55) ->  | D55: =IF(data!G55="","",data!G55) ->  | E55: =IF(data!H55="","",data!H55) ->  | F55: Mittelwert | H55: =AVERAGE(H5:H54) -> 74.00504 | I55: =AVERAGE(I5:I54) -> 0.01043342112 | J55: =AVERAGE(J5:J54) -> 0.0282 | V55: 51 | AB55: E30 | AC55: =IF($B$30="","",$B$30) ->  | AF55: =IF($D$21="","",$D$21) ->  | AI55: =IF($D$17="","",$D$17) ->  | AK55: E15 | AL55: =IF($B$15="","",$B$15) ->  | CE55: 51
B56: =IF(data!E56="","",data!E56) ->  | C56: =IF(data!F56="","",data!F56) ->  | D56: =IF(data!G56="","",data!G56) ->  | E56: =IF(data!H56="","",data!H56) ->  | F56: =IF(data!I56="","",data!I56) ->  | H56: Mittelwert | I56: Standardabweichung | J56: Range | V56: 52 | AC56: =IF($C$30="","",$C$30) ->  | AE56: E22 | AF56: =IF($B$22="","",$B$22) ->  | AI56: =IF($E$17="","",$E$17) ->  | AL56: =IF($C$15="","",$C$15) ->  | CE56: 52
B57: =IF(data!E57="","",data!E57) ->  | C57: =IF(data!F57="","",data!F57) ->  | D57: =IF(data!G57="","",data!G57) ->  | E57: =IF(data!H57="","",data!H57) ->  | F57: =IF(data!I57="","",data!I57) ->  | V57: 53 | AB57: E31 | AC57: =IF($B$31="","",$B$31) ->  | AF57: =IF($C$22="","",$C$22) ->  | AH57: E18 | AI57: =IF($B$18="","",$B$18) ->  | AL57: =IF($D$15="","",$D$15) ->  | CE57: 53
V58: 54 | AC58: =IF($C$31="","",$C$31) ->  | AF58: =IF($D$22="","",$D$22) ->  | AI58: =IF($C$18="","",$C$18) ->  | AL58: =IF($E$15="","",$E$15) ->  | AP58: Histogramm Messwerte | CE58: 54
V59: 55 | AB59: E32 | AC59: =IF($B$32="","",$B$32) ->  | AE59: E23 | AF59: =IF($B$23="","",$B$23) ->  | AI59: =IF($D$18="","",$D$18) ->  | AL59: =IF($F$15="","",$F$15) ->  | AP59: Anzahl Klassen Histogramm | AS59: =AnzahlKlassenHistogramm -> 20 | CE59: 55
V60: 56 | AC60: =IF($C$32="","",$C$32) ->  | AF60: =IF($C$23="","",$C$23) ->  | AI60: =IF($E$18="","",$E$18) ->  | AK60: E16 | AL60: =IF($B$16="","",$B$16) ->  | AP60: Nummer | AQ60: Untere | AR60: Obere | AU60: Absolute | AV60: Relative | AY60: Häufig- | CE60: 56
V61: 57 | AB61: E33 | AC61: =IF($B$33="","",$B$33) ->  | AF61: =IF($D$23="","",$D$23) ->  | AH61: E19 | AI61: =IF($B$19="","",$B$19) ->  | AL61: =IF($C$16="","",$C$16) ->  | AP61: der | AQ61: Klassen- | AR61: Klassen- | AS61: Klassen- | AT61: Klassen- | AU61: Summen- | AV61: Summen- | AW61: Absolute | AX61: Relative | AY61: keits- | CE61: 57
V62: 58 | AC62: =IF($C$33="","",$C$33) ->  | AE62: E24 | AF62: =IF($B$24="","",$B$24) ->  | AI62: =IF($C$19="","",$C$19) ->  | AL62: =IF($D$16="","",$D$16) ->  | AP62: Klasse | AQ62: grenze | AR62: grenze | AS62: mitte | AT62: breite | AU62: häufigkeit | AV62: häufigkeit | AW62: Häufigkeit | AX62: Häufigkeit | AY62: dichte | CE62: 58
V63: 59 | AB63: E34 | AC63: =IF($B$34="","",$B$34) ->  | AF63: =IF($C$24="","",$C$24) ->  | AI63: =IF($D$19="","",$D$19) ->  | AL63: =IF($E$16="","",$E$16) ->  | AP63: j | AQ63: UKGj | AR63: OKGj | AS63: xj´ | AT63: wj | AU63: G(OKGj) | AV63: H(OKGj) | AW63: nj | AX63: hj | AY63: h(x) | CE63: 59
V64: 60 | AC64: =IF($C$34="","",$C$34) ->  | AF64: =IF($D$24="","",$D$24) ->  | AI64: =IF($E$19="","",$E$19) ->  | AL64: =IF($F$16="","",$F$16) ->  | AP64: 1 | AQ64: =Minimum -> 73.988 | AR64: =AQ64+AT64 -> 73.9901 | AS64: =(AR64+AQ64)/2 -> 73.98905 | AT64: =Spannweite/AnzahlKlassenHistogramm -> 0.0021 | AU64: =FREQUENCY(xi,AR64) -> 2 | AV64: =$AU64/Anzahl -> 0.08 | AW64: =AU64 -> 2 | AX64: =AW64/Anzahl -> 0.08 | AY64: =AX64/AT64 -> 38.0952381 | CE64: 60
V65: 61 | AB65: E35 | AC65: =IF($B$35="","",$B$35) ->  | AE65: E25 | AF65: =IF($B$25="","",$B$25) ->  | AH65: E20 | AI65: =IF($B$20="","",$B$20) ->  | AK65: E17 | AL65: =IF($B$17="","",$B$17) ->  | AP65: 2 | AQ65: =IF(AnzahlKlassenHistogramm<AP65,AQ64,AQ64+AT65+0.00000001) -> 73.99010001 | AR65: =AQ65+AT65 -> 73.99220001 | AS65: =(AR65+AQ65)/2 -> 73.99115001 | AT65: 0.0021 | AU65: 5 | AV65: 0.2 | AW65: =AU65-AU64 -> 3 | AX65: 0.12 | AY65: =AX65/AT65 -> 57.14285714 | CE65: 61
V66: 62 | AC66: =IF($C$35="","",$C$35) ->  | AF66: =IF($C$25="","",$C$25) ->  | AI66: =IF($C$20="","",$C$20) ->  | AL66: =IF($C$17="","",$C$17) ->  | AP66: 3 | AQ66: 73.99220002 | AR66: =AQ66+AT66 -> 73.99430002 | AS66: =(AR66+AQ66)/2 -> 73.99325002 | AT66: 0.0021 | AU66: 6 | AV66: 0.24 | AW66: =AU66-AU65 -> 1 | AX66: 0.04 | AY66: =AX66/AT66 -> 19.04761905 | CE66: 62
V67: 63 | AB67: E36 | AC67: =IF($B$36="","",$B$36) ->  | AF67: =IF($D$25="","",$D$25) ->  | AI67: =IF($D$20="","",$D$20) ->  | AL67: =IF($D$17="","",$D$17) ->  | AP67: 4 | AQ67: 73.99430003 | AR67: 73.99640003 | AS67: 73.99535003 | AT67: 0.0021 | AU67: 8 | AV67: 0.32 | AW67: 2 | AX67: 0.08 | AY67: 38.0952381 | CE67: 63
V68: 64 | AC68: =IF($C$36="","",$C$36) ->  | AE68: E26 | AF68: =IF($B$26="","",$B$26) ->  | AI68: =IF($E$20="","",$E$20) ->  | AL68: =IF($E$17="","",$E$17) ->  | AP68: 5 | AQ68: 73.99640004 | AR68: 73.99850004 | AS68: 73.99745004 | AT68: 0.0021 | AU68: 8 | AV68: 0.32 | AW68: 0 | AX68: 0 | AY68: 0 | CE68: 64
V69: 65 | X69: =IF(W69<>"",IF(W69<UGW,1,0),"") ->  | Y69: =IF(W69<>"",IF(W69>OGW,1,0),"") ->  | AB69: E37 | AC69: =IF($B$37="","",$B$37) ->  | AF69: =IF($C$26="","",$C$26) ->  | AH69: E21 | AI69: =IF($B$21="","",$B$21) ->  | AL69: =IF($F$17="","",$F$17) ->  | AP69: 6 | AQ69: 73.99850005 | AR69: 74.00060005 | AS69: 73.99955005 | AT69: 0.0021 | AU69: 8 | AV69: 0.32 | AW69: 0 | AX69: 0 | AY69: 0 | CE69: 65 | CF69: =IF(W69="",NA(),SMALL(xi,CG69)) ->  | CH69: =IF(W69="","",NORMSDIST((CF69-Mittelwert)/Standardabweichung)-0.00000001) ->  | CI69: =IF(W69="","",1-CH69) ->  | CJ69: =IF(W69="","",SMALL(BG,CG69)) ->  | CK69: =IF(W69="","",(2*CG69-1)*(LN(CJ69)+LN(CH69))) ->  | CL69: =IF(W69="",NA(),NORMSINV((CG69-0.3)/(Anzahl+0.4))) -> 
V70: 66 | W70: =IF($AP$39=2,IF(AC70<>"",AC70,""),(IF($AP$39=3,IF(AF70<>"",AF70,""),(IF($AP$39=4,IF(AI70<>"",AI70,""),IF(AL70<>"",AL70,"")))))) ->  | AC70: =IF($C$37="","",$C$37) ->  | AF70: =IF($D$26="","",$D$26) ->  | AI70: =IF($C$21="","",$C$21) ->  | AK70: E18 | AL70: =IF($B$18="","",$B$18) ->  | AP70: 7 | AQ70: 74.00060006 | AR70: 74.00270006 | AS70: 74.00165006 | AT70: 0.0021 | AU70: 12 | AV70: 0.48 | AW70: 4 | AX70: 0.16 | AY70: 76.19047619 | CE70: 66 | CG70: =IF(W70="","",1+CG69) -> 
V71: 67 | AB71: E38 | AC71: =IF($B$38="","",$B$38) ->  | AE71: E27 | AF71: =IF($B$27="","",$B$27) ->  | AI71: =IF($D$21="","",$D$21) ->  | AL71: =IF($C$18="","",$C$18) ->  | AP71: 8 | AQ71: 74.00270007 | AR71: 74.00480007 | AS71: 74.00375007 | AT71: 0.0021 | AU71: 13 | AV71: 0.52 | AW71: 1 | AX71: 0.04 | AY71: 19.04761905 | CE71: 67
V72: 68 | AC72: =IF($C$38="","",$C$38) ->  | AF72: =IF($C$27="","",$C$27) ->  | AI72: =IF($E$21="","",$E$21) ->  | AL72: =IF($D$18="","",$D$18) ->  | AP72: 9 | AQ72: 74.00480008 | AR72: 74.00690008 | AS72: 74.00585008 | AT72: 0.0021 | AU72: 14 | AV72: 0.56 | AW72: 1 | AX72: 0.04 | AY72: 19.04761905 | CE72: 68
V73: 69 | AB73: E39 | AC73: =IF($B$39="","",$B$39) ->  | AF73: =IF($D$27="","",$D$27) ->  | AH73: E22 | AI73: =IF($B$22="","",$B$22) ->  | AL73: =IF($E$18="","",$E$18) ->  | AP73: 10 | AQ73: 74.00690009 | AR73: 74.00900009 | AS73: 74.00795009 | AT73: 0.0021 | AU73: 17 | AV73: 0.68 | AW73: 3 | AX73: 0.12 | AY73: 57.14285714 | CE73: 69
V74: 70 | AC74: =IF($C$39="","",$C$39) ->  | AE74: E28 | AF74: =IF($B$28="","",$B$28) ->  | AI74: =IF($C$22="","",$C$22) ->  | AL74: =IF($F$18="","",$F$18) ->  | AP74: 11 | AQ74: 74.0090001 | AR74: 74.0111001 | AS74: 74.0100501 | AT74: 0.0021 | AU74: 18 | AV74: 0.72 | AW74: 1 | AX74: 0.04 | AY74: 19.04761905 | CE74: 70
V75: 71 | AB75: E40 | AC75: =IF($B$40="","",$B$40) ->  | AF75: =IF($C$28="","",$C$28) ->  | AI75: =IF($D$22="","",$D$22) ->  | AK75: E19 | AL75: =IF($B$19="","",$B$19) ->  | AP75: 12 | AQ75: 74.01110011 | AR75: 74.01320011 | AS75: 74.01215011 | AT75: 0.0021 | AU75: 18 | AV75: 0.72 | AW75: 0 | AX75: 0 | AY75: 0 | CE75: 71
V76: 72 | AC76: =IF($C$40="","",$C$40) ->  | AF76: =IF($D$28="","",$D$28) ->  | AI76: =IF($E$22="","",$E$22) ->  | AL76: =IF($C$19="","",$C$19) ->  | AP76: 13 | AQ76: 74.01320012 | AR76: 74.01530012 | AS76: 74.01425012 | AT76: 0.0021 | AU76: 21 | AV76: 0.84 | AW76: 3 | AX76: 0.12 | AY76: 57.14285714 | CE76: 72
V77: 73 | AB77: E41 | AC77: =IF($B$41="","",$B$41) ->  | AE77: E29 | AF77: =IF($B$29="","",$B$29) ->  | AH77: E23 | AI77: =IF($B$23="","",$B$23) ->  | AL77: =IF($D$19="","",$D$19) ->  | AP77: 14 | AQ77: 74.01530013 | AR77: 74.01740013 | AS77: 74.01635013 | AT77: 0.0021 | AU77: 21 | AV77: 0.84 | AW77: 0 | AX77: 0 | AY77: 0 | CE77: 73
V78: 74 | AC78: =IF($C$41="","",$C$41) ->  | AF78: =IF($C$29="","",$C$29) ->  | AI78: =IF($C$23="","",$C$23) ->  | AL78: =IF($E$19="","",$E$19) ->  | AP78: 15 | AQ78: 74.01740014 | AR78: 74.01950014 | AS78: 74.01845014 | AT78: 0.0021 | AU78: 22 | AV78: 0.88 | AW78: 1 | AX78: 0.04 | AY78: 19.04761905 | CE78: 74
V79: 75 | AB79: E42 | AC79: =IF($B$42="","",$B$42) ->  | AF79: =IF($D$29="","",$D$29) ->  | AI79: =IF($D$23="","",$D$23) ->  | AL79: =IF($F$19="","",$F$19) ->  | AP79: 16 | AQ79: 74.01950015 | AR79: 74.02160015 | AS79: 74.02055015 | AT79: 0.0021 | AU79: 23 | AV79: 0.92 | AW79: 1 | AX79: 0.04 | AY79: 19.04761905 | CE79: 75
V80: 76 | AC80: =IF($C$42="","",$C$42) ->  | AE80: E30 | AF80: =IF($B$30="","",$B$30) ->  | AI80: =IF($E$23="","",$E$23) ->  | AK80: E20 | AL80: =IF($B$20="","",$B$20) ->  | AP80: 17 | AQ80: 74.02160016 | AR80: 74.02370016 | AS80: 74.02265016 | AT80: 0.0021 | AU80: 23 | AV80: 0.92 | AW80: 0 | AX80: 0 | AY80: 0 | CE80: 76
V81: 77 | AB81: E43 | AC81: =IF($B$43="","",$B$43) ->  | AF81: =IF($C$30="","",$C$30) ->  | AH81: E24 | AI81: =IF($B$24="","",$B$24) ->  | AL81: =IF($C$20="","",$C$20) ->  | AP81: 18 | AQ81: 74.02370017 | AR81: 74.02580017 | AS81: 74.02475017 | AT81: 0.0021 | AU81: 24 | AV81: 0.96 | AW81: 1 | AX81: 0.04 | AY81: 19.04761905 | CE81: 77
V82: 78 | AC82: =IF($C$43="","",$C$43) ->  | AF82: =IF($D$30="","",$D$30) ->  | AI82: =IF($C$24="","",$C$24) ->  | AL82: =IF($D$20="","",$D$20) ->  | AP82: 19 | AQ82: 74.02580018 | AR82: 74.02790018 | AS82: 74.02685018 | AT82: 0.0021 | AU82: 24 | AV82: 0.96 | AW82: 0 | AX82: 0 | AY82: 0 | CE82: 78
V83: 79 | AB83: E44 | AC83: =IF($B$44="","",$B$44) ->  | AE83: E31 | AF83: =IF($B$31="","",$B$31) ->  | AI83: =IF($D$24="","",$D$24) ->  | AL83: =IF($E$20="","",$E$20) ->  | AP83: 20 | AQ83: 74.02790019 | AR83: 74.03000019 | AS83: 74.02895019 | AT83: 0.0021 | AU83: 25 | AV83: 1 | AW83: 1 | AX83: 0.04 | AY83: 19.04761905 | CE83: 79
V84: 80 | AC84: =IF($C$44="","",$C$44) ->  | AF84: =IF($C$31="","",$C$31) ->  | AI84: =IF($E$24="","",$E$24) ->  | AL84: =IF($F$20="","",$F$20) ->  | CE84: 80
V85: 81 | AB85: E45 | AC85: =IF($B$45="","",$B$45) ->  | AF85: =IF($D$31="","",$D$31) ->  | AH85: E25 | AI85: =IF($B$25="","",$B$25) ->  | AK85: E21 | AL85: =IF($B$21="","",$B$21) ->  | CE85: 81
V86: 82 | AC86: =IF($C$45="","",$C$45) ->  | AE86: E32 | AF86: =IF($B$32="","",$B$32) ->  | AI86: =IF($C$25="","",$C$25) ->  | AL86: =IF($C$21="","",$C$21) ->  | AP86: Histogramm Normalverteilung | CE86: 82
V87: 83 | AB87: E46 | AC87: =IF($B$46="","",$B$46) ->  | AF87: =IF($C$32="","",$C$32) ->  | AI87: =IF($D$25="","",$D$25) ->  | AL87: =IF($D$21="","",$D$21) ->  | AQ87: 1.1 | AR87: =AR88-(AQ87*Standardabweichung) -> 73.92877072 | AS87: =NORMDIST(AR87,Mittelwert,Standardabweichung,0) -> 1.199970485e-08 | AU87: OGW | AV87: =IF(AP10="",#N/A,AP10) -> 74.05 | AW87: =MAX(Häufigkeitsdichte)*1.05 -> 80 | CE87: 83
V88: 84 | AC88: =IF($C$46="","",$C$46) ->  | AF88: =IF($D$32="","",$D$32) ->  | AI88: =IF($E$25="","",$E$25) ->  | AL88: =IF($E$21="","",$E$21) ->  | AQ88: 1 | AR88: 73.94148227 | AS88: 9.319665845e-06 | AU88: UGW | AV88: =IF(AP9="",#N/A,AP9) -> 73.95 | AW88: 80 | CE88: 84
V89: 85 | AB89: E47 | AC89: =IF($B$47="","",$B$47) ->  | AE89: E33 | AF89: =IF($B$33="","",$B$33) ->  | AH89: E26 | AI89: =IF($B$26="","",$B$26) ->  | AL89: =IF($F$21="","",$F$21) ->  | AQ89: 0.9 | AR89: 73.95303822 | AS89: 0.00138316105 | AU89: ="+ 3 Sigma" -> + 3 Sigma | AV89: =Mittelwert+3*Standardabweichung -> 74.03970785 | AW89: 80 | CE89: 85
V90: 86 | AC90: =IF($C$47="","",$C$47) ->  | AF90: =IF($C$33="","",$C$33) ->  | AI90: =IF($C$26="","",$C$26) ->  | AK90: E22 | AL90: =IF($B$22="","",$B$22) ->  | AQ90: 0.8 | AR90: 73.96343858 | AS90: 0.05295124029 | AU90: ="- 3 Sigma" -> - 3 Sigma | AV90: =Mittelwert-3*Standardabweichung -> 73.97037215 | AW90: 80 | CE90: 86
V91: 87 | AB91: E48 | AC91: =IF($B$48="","",$B$48) ->  | AF91: =IF($D$33="","",$D$33) ->  | AI91: =IF($D$26="","",$D$26) ->  | AL91: =IF($C$22="","",$C$22) ->  | AQ91: 0.7 | AR91: 73.97268334 | AS91: 0.684967571 | AU91: Mittelwert | AV91: =Mittelwert -> 74.00504 | AW91: 80 | CE91: 87
V92: 88 | AC92: =IF($C$48="","",$C$48) ->  | AE92: E34 | AF92: =IF($B$34="","",$B$34) ->  | AI92: =IF($E$26="","",$E$26) ->  | AL92: =IF($D$22="","",$D$22) ->  | AQ92: 0.6 | AR92: 73.9807725 | AS92: 3.806142529 | AU92: Nominalwert | AV92: =Sollwert -> 74 | AW92: 80 | CE92: 88
V93: 89 | AB93: E49 | AC93: =IF($B$49="","",$B$49) ->  | AF93: =IF($C$34="","",$C$34) ->  | AH93: E27 | AI93: =IF($B$27="","",$B$27) ->  | AL93: =IF($E$22="","",$E$22) ->  | AQ93: 0.5 | AR93: 73.98770607 | AS93: 11.20787007 | CE93: 89
V94: 90 | AC94: =IF($C$49="","",$C$49) ->  | AF94: =IF($D$34="","",$D$34) ->  | AI94: =IF($C$27="","",$C$27) ->  | AL94: =IF($F$22="","",$F$22) ->  | AQ94: 0.4 | AR94: 73.99348405 | AS94: 20.93905795 | CE94: 90
V95: 91 | AB95: E50 | AC95: =IF($B$50="","",$B$50) ->  | AE95: E35 | AF95: =IF($B$35="","",$B$35) ->  | AI95: =IF($D$27="","",$D$27) ->  | AK95: E23 | AL95: =IF($B$23="","",$B$23) ->  | AQ95: 0.3 | AR95: 73.99810643 | AS95: 28.83575807 | CE95: 91
V96: 92 | AC96: =IF($C$50="","",$C$50) ->  | AF96: =IF($C$35="","",$C$35) ->  | AI96: =IF($E$27="","",$E$27) ->  | AL96: =IF($C$23="","",$C$23) ->  | AQ96: 0.2 | AR96: 74.00157321 | AS96: 33.00358581 | CE96: 92
V97: 93 | AB97: E51 | AC97: =IF($B$51="","",$B$51) ->  | AF97: =IF($D$35="","",$D$35) ->  | AH97: E28 | AI97: =IF($B$28="","",$B$28) ->  | AL97: =IF($D$23="","",$D$23) ->  | AQ97: 0.1 | AR97: 74.0038844 | AS97: 34.3504877 | CE97: 93
V98: 94 | AC98: =IF($C$51="","",$C$51) ->  | AE98: E36 | AF98: =IF($B$36="","",$B$36) ->  | AI98: =IF($C$28="","",$C$28) ->  | AL98: =IF($E$23="","",$E$23) ->  | AQ98: 0 | AR98: =Mittelwert -> 74.00504 | AS98: 34.52267024 | CE98: 94
V99: 95 | AB99: E52 | AC99: =IF($B$52="","",$B$52) ->  | AF99: =IF($C$36="","",$C$36) ->  | AI99: =IF($D$28="","",$D$28) ->  | AL99: =IF($F$23="","",$F$23) ->  | AQ99: 0.1 | AR99: =AR98+(AQ99*Standardabweichung) -> 74.0061956 | AS99: 34.3504877 | CE99: 95
V100: 96 | AC100: =IF($C$52="","",$C$52) ->  | AF100: =IF($D$36="","",$D$36) ->  | AI100: =IF($E$28="","",$E$28) ->  | AK100: E24 | AL100: =IF($B$24="","",$B$24) ->  | AQ100: 0.2 | AR100: 74.00850679 | AS100: 33.00358581 | CE100: 96
V101: 97 | AB101: E53 | AC101: =IF($B$53="","",$B$53) ->  | AE101: E37 | AF101: =IF($B$37="","",$B$37) ->  | AH101: E29 | AI101: =IF($B$29="","",$B$29) ->  | AL101: =IF($C$24="","",$C$24) ->  | AQ101: 0.3 | AR101: 74.01197357 | AS101: 28.83575807 | CE101: 97 | CI101: =IF(W101="","",1-CH101) ->  | CK101: =IF(W101="","",(2*CG101-1)*(LN(CJ101)+LN(CH101))) -> 
V102: 98 | AC102: =IF($C$53="","",$C$53) ->  | AF102: =IF($C$37="","",$C$37) ->  | AI102: =IF($C$29="","",$C$29) ->  | AL102: =IF($D$24="","",$D$24) ->  | AQ102: 0.4 | AR102: 74.01659595 | AS102: 20.93905795 | CE102: 98 | CG102: =IF(W102="","",1+CG101) -> 
V103: 99 | AB103: E54 | AC103: =IF($B$54="","",$B$54) ->  | AF103: =IF($D$37="","",$D$37) ->  | AI103: =IF($D$29="","",$D$29) ->  | AL103: =IF($E$24="","",$E$24) ->  | AQ103: 0.5 | AR103: 74.02237393 | AS103: 11.20787007 | CE103: 99
V104: 100 | AC104: =IF($C$54="","",$C$54) ->  | AE104: E38 | AF104: =IF($B$38="","",$B$38) ->  | AI104: =IF($E$29="","",$E$29) ->  | AL104: =IF($F$24="","",$F$24) ->  | AQ104: 0.6 | AR104: 74.0293075 | AS104: 3.806142529 | CE104: 100
V105: 101 | AF105: =IF($C$38="","",$C$38) ->  | AH105: E30 | AI105: =IF($B$30="","",$B$30) ->  | AK105: E25 | AL105: =IF($B$25="","",$B$25) ->  | AQ105: 0.7 | AR105: 74.03739666 | AS105: 0.684967571 | CE105: 101
V106: 102 | AF106: =IF($D$38="","",$D$38) ->  | AI106: =IF($C$30="","",$C$30) ->  | AL106: =IF($C$25="","",$C$25) ->  | AQ106: 0.8 | AR106: 74.04664142 | AS106: 0.05295124029 | CE106: 102
V107: 103 | AE107: E39 | AF107: =IF($B$39="","",$B$39) ->  | AI107: =IF($D$30="","",$D$30) ->  | AL107: =IF($D$25="","",$D$25) ->  | AQ107: 0.9 | AR107: 74.05704178 | AS107: 0.00138316105 | CE107: 103
V108: 104 | AF108: =IF($C$39="","",$C$39) ->  | AI108: =IF($E$30="","",$E$30) ->  | AL108: =IF($E$25="","",$E$25) ->  | AQ108: 1 | AR108: 74.06859773 | AS108: 9.319665845e-06 | CE108: 104
V109: 105 | AF109: =IF($D$39="","",$D$39) ->  | AH109: E31 | AI109: =IF($B$31="","",$B$31) ->  | AL109: =IF($F$25="","",$F$25) ->  | AQ109: 1.1 | AR109: 74.08130928 | AS109: 1.199970485e-08 | CE109: 105
V110: 106 | AE110: E40 | AF110: =IF($B$40="","",$B$40) ->  | AI110: =IF($C$31="","",$C$31) ->  | AK110: E26 | AL110: =IF($B$26="","",$B$26) ->  | CE110: 106
V111: 107 | AF111: =IF($C$40="","",$C$40) ->  | AI111: =IF($D$31="","",$D$31) ->  | AL111: =IF($C$26="","",$C$26) ->  | CE111: 107
V112: 108 | AF112: =IF($D$40="","",$D$40) ->  | AI112: =IF($E$31="","",$E$31) ->  | AL112: =IF($D$26="","",$D$26) ->  | CE112: 108
V113: 109 | AE113: E41 | AF113: =IF($B$41="","",$B$41) ->  | AH113: E32 | AI113: =IF($B$32="","",$B$32) ->  | AL113: =IF($E$26="","",$E$26) ->  | CE113: 109
V114: 110 | AF114: =IF($C$41="","",$C$41) ->  | AI114: =IF($C$32="","",$C$32) ->  | AL114: =IF($F$26="","",$F$26) ->  | CE114: 110
V115: 111 | AF115: =IF($D$41="","",$D$41) ->  | AI115: =IF($D$32="","",$D$32) ->  | AK115: E27 | AL115: =IF($B$27="","",$B$27) ->  | CE115: 111
V116: 112 | AE116: E42 | AF116: =IF($B$42="","",$B$42) ->  | AI116: =IF($E$32="","",$E$32) ->  | AL116: =IF($C$27="","",$C$27) ->  | CE116: 112
V117: 113 | AF117: =IF($C$42="","",$C$42) ->  | AH117: E33 | AI117: =IF($B$33="","",$B$33) ->  | AL117: =IF($D$27="","",$D$27) ->  | CE117: 113
V118: 114 | AF118: =IF($D$42="","",$D$42) ->  | AI118: =IF($C$33="","",$C$33) ->  | AL118: =IF($E$27="","",$E$27) ->  | CE118: 114
V119: 115 | AE119: E43 | AF119: =IF($B$43="","",$B$43) ->  | AI119: =IF($D$33="","",$D$33) ->  | AL119: =IF($F$27="","",$F$27) ->  | CE119: 115
V120: 116 | AF120: =IF($C$43="","",$C$43) ->  | AI120: =IF($E$33="","",$E$33) ->  | AK120: E28 | AL120: =IF($B$28="","",$B$28) ->  | CE120: 116
V121: 117 | AF121: =IF($D$43="","",$D$43) ->  | AH121: E34 | AI121: =IF($B$34="","",$B$34) ->  | AL121: =IF($C$28="","",$C$28) ->  | CE121: 117
V122: 118 | AE122: E44 | AF122: =IF($B$44="","",$B$44) ->  | AI122: =IF($C$34="","",$C$34) ->  | AL122: =IF($D$28="","",$D$28) ->  | CE122: 118
V123: 119 | AF123: =IF($C$44="","",$C$44) ->  | AI123: =IF($D$34="","",$D$34) ->  | AL123: =IF($E$28="","",$E$28) ->  | CE123: 119
V124: 120 | AF124: =IF($D$44="","",$D$44) ->  | AI124: =IF($E$34="","",$E$34) ->  | AL124: =IF($F$28="","",$F$28) ->  | CE124: 120
V125: 121 | AE125: E45 | AF125: =IF($B$45="","",$B$45) ->  | AH125: E35 | AI125: =IF($B$35="","",$B$35) ->  | AK125: E29 | AL125: =IF($B$29="","",$B$29) ->  | CE125: 121
V126: 122 | AF126: =IF($C$45="","",$C$45) ->  | AI126: =IF($C$35="","",$C$35) ->  | AL126: =IF($C$29="","",$C$29) ->  | CE126: 122
V127: 123 | AF127: =IF($D$45="","",$D$45) ->  | AI127: =IF($D$35="","",$D$35) ->  | AL127: =IF($D$29="","",$D$29) ->  | CE127: 123
V128: 124 | AE128: E46 | AF128: =IF($B$46="","",$B$46) ->  | AI128: =IF($E$35="","",$E$35) ->  | AL128: =IF($E$29="","",$E$29) ->  | CE128: 124
V129: 125 | AF129: =IF($C$46="","",$C$46) ->  | AH129: E36 | AI129: =IF($B$36="","",$B$36) ->  | AL129: =IF($F$29="","",$F$29) ->  | CE129: 125
V130: 126 | AF130: =IF($D$46="","",$D$46) ->  | AI130: =IF($C$36="","",$C$36) ->  | AK130: E30 | AL130: =IF($B$30="","",$B$30) ->  | CE130: 126
V131: 127 | AE131: E47 | AF131: =IF($B$47="","",$B$47) ->  | AI131: =IF($D$36="","",$D$36) ->  | AL131: =IF($C$30="","",$C$30) ->  | CE131: 127
V132: 128 | AF132: =IF($C$47="","",$C$47) ->  | AI132: =IF($E$36="","",$E$36) ->  | AL132: =IF($D$30="","",$D$30) ->  | CE132: 128
V133: 129 | X133: =IF(W133<>"",IF(W133<UGW,1,0),"") ->  | Y133: =IF(W133<>"",IF(W133>OGW,1,0),"") ->  | AF133: =IF($D$47="","",$D$47) ->  | AH133: E37 | AI133: =IF($B$37="","",$B$37) ->  | AL133: =IF($E$30="","",$E$30) ->  | CE133: 129 | CF133: =IF(W133="",NA(),SMALL(xi,CG133)) ->  | CH133: =IF(W133="","",NORMSDIST((CF133-Mittelwert)/Standardabweichung)-0.00000001) ->  | CI133: =IF(W133="","",1-CH133) ->  | CJ133: =IF(W133="","",SMALL(BG,CG133)) ->  | CK133: =IF(W133="","",(2*CG133-1)*(LN(CJ133)+LN(CH133))) ->  | CL133: =IF(W133="",NA(),NORMSINV((CG133-0.3)/(Anzahl+0.4))) -> 
V134: 130 | W134: =IF($AP$39=2,IF(AC134<>"",AC134,""),(IF($AP$39=3,IF(AF134<>"",AF134,""),(IF($AP$39=4,IF(AI134<>"",AI134,""),IF(AL134<>"",AL134,"")))))) ->  | AE134: E48 | AF134: =IF($B$48="","",$B$48) ->  | AI134: =IF($C$37="","",$C$37) ->  | AL134: =IF($F$30="","",$F$30) ->  | CE134: 130 | CG134: =IF(W134="","",1+CG133) -> 
V135: 131 | AF135: =IF($C$48="","",$C$48) ->  | AI135: =IF($D$37="","",$D$37) ->  | AK135: E31 | AL135: =IF($B$31="","",$B$31) ->  | CE135: 131
V136: 132 | AF136: =IF($D$48="","",$D$48) ->  | AI136: =IF($E$37="","",$E$37) ->  | AL136: =IF($C$31="","",$C$31) ->  | CE136: 132
V137: 133 | AE137: E49 | AF137: =IF($B$49="","",$B$49) ->  | AH137: E38 | AI137: =IF($B$38="","",$B$38) ->  | AL137: =IF($D$31="","",$D$31) ->  | CE137: 133
V138: 134 | AF138: =IF($C$49="","",$C$49) ->  | AI138: =IF($C$38="","",$C$38) ->  | AL138: =IF($E$31="","",$E$31) ->  | CE138: 134
V139: 135 | AF139: =IF($D$49="","",$D$49) ->  | AI139: =IF($D$38="","",$D$38) ->  | AL139: =IF($F$31="","",$F$31) ->  | CE139: 135
V140: 136 | AE140: E50 | AF140: =IF($B$50="","",$B$50) ->  | AI140: =IF($E$38="","",$E$38) ->  | AK140: E32 | AL140: =IF($B$32="","",$B$32) ->  | CE140: 136
V141: 137 | AF141: =IF($C$50="","",$C$50) ->  | AH141: E39 | AI141: =IF($B$39="","",$B$39) ->  | AL141: =IF($C$32="","",$C$32) ->  | CE141: 137
V142: 138 | AF142: =IF($D$50="","",$D$50) ->  | AI142: =IF($C$39="","",$C$39) ->  | AL142: =IF($D$32="","",$D$32) ->  | CE142: 138
V143: 139 | AE143: E51 | AF143: =IF($B$51="","",$B$51) ->  | AI143: =IF($D$39="","",$D$39) ->  | AL143: =IF($E$32="","",$E$32) ->  | CE143: 139
V144: 140 | AF144: =IF($C$51="","",$C$51) ->  | AI144: =IF($E$39="","",$E$39) ->  | AL144: =IF($F$32="","",$F$32) ->  | CE144: 140
V145: 141 | AF145: =IF($D$51="","",$D$51) ->  | AH145: E40 | AI145: =IF($B$40="","",$B$40) ->  | AK145: E33 | AL145: =IF($B$33="","",$B$33) ->  | CE145: 141
V146: 142 | AE146: E52 | AF146: =IF($B$52="","",$B$52) ->  | AI146: =IF($C$40="","",$C$40) ->  | AL146: =IF($C$33="","",$C$33) ->  | CE146: 142
V147: 143 | AF147: =IF($C$52="","",$C$52) ->  | AI147: =IF($D$40="","",$D$40) ->  | AL147: =IF($D$33="","",$D$33) ->  | CE147: 143
V148: 144 | AF148: =IF($D$52="","",$D$52) ->  | AI148: =IF($E$40="","",$E$40) ->  | AL148: =IF($E$33="","",$E$33) ->  | CE148: 144
V149: 145 | AE149: E53 | AF149: =IF($B$53="","",$B$53) ->  | AH149: E41 | AI149: =IF($B$41="","",$B$41) ->  | AL149: =IF($F$33="","",$F$33) ->  | CE149: 145
V150: 146 | AF150: =IF($C$53="","",$C$53) ->  | AI150: =IF($C$41="","",$C$41) ->  | AK150: E34 | AL150: =IF($B$34="","",$B$34) ->  | CE150: 146
V151: 147 | AF151: =IF($D$53="","",$D$53) ->  | AI151: =IF($D$41="","",$D$41) ->  | AL151: =IF($C$34="","",$C$34) ->  | CE151: 147
V152: 148 | AE152: E54 | AF152: =IF($B$54="","",$B$54) ->  | AI152: =IF($E$41="","",$E$41) ->  | AL152: =IF($D$34="","",$D$34) ->  | CE152: 148
V153: 149 | AF153: =IF($C$54="","",$C$54) ->  | AH153: E42 | AI153: =IF($B$42="","",$B$42) ->  | AL153: =IF($E$34="","",$E$34) ->  | CE153: 149
V154: 150 | AF154: =IF($D$54="","",$D$54) ->  | AI154: =IF($C$42="","",$C$42) ->  | AL154: =IF($F$34="","",$F$34) ->  | CE154: 150
V155: 151 | AI155: =IF($D$42="","",$D$42) ->  | AK155: E35 | AL155: =IF($B$35="","",$B$35) ->  | CE155: 151
V156: 152 | AI156: =IF($E$42="","",$E$42) ->  | AL156: =IF($C$35="","",$C$35) ->  | CE156: 152
V157: 153 | AH157: E43 | AI157: =IF($B$43="","",$B$43) ->  | AL157: =IF($D$35="","",$D$35) ->  | CE157: 153
V158: 154 | AI158: =IF($C$43="","",$C$43) ->  | AL158: =IF($E$35="","",$E$35) ->  | CE158: 154
V159: 155 | AI159: =IF($D$43="","",$D$43) ->  | AL159: =IF($F$35="","",$F$35) ->  | CE159: 155
V160: 156 | AI160: =IF($E$43="","",$E$43) ->  | AK160: E36 | AL160: =IF($B$36="","",$B$36) ->  | CE160: 156
V161: 157 | AH161: E44 | AI161: =IF($B$44="","",$B$44) ->  | AL161: =IF($C$36="","",$C$36) ->  | CE161: 157
V162: 158 | AI162: =IF($C$44="","",$C$44) ->  | AL162: =IF($D$36="","",$D$36) ->  | CE162: 158
V163: 159 | AI163: =IF($D$44="","",$D$44) ->  | AL163: =IF($E$36="","",$E$36) ->  | CE163: 159
V164: 160 | AI164: =IF($E$44="","",$E$44) ->  | AL164: =IF($F$36="","",$F$36) ->  | CE164: 160
V165: 161 | AH165: E45 | AI165: =IF($B$45="","",$B$45) ->  | AK165: E37 | AL165: =IF($B$37="","",$B$37) ->  | CE165: 161 | CI165: =IF(W165="","",1-CH165) ->  | CK165: =IF(W165="","",(2*CG165-1)*(LN(CJ165)+LN(CH165))) -> 
V166: 162 | AI166: =IF($C$45="","",$C$45) ->  | AL166: =IF($C$37="","",$C$37) ->  | CE166: 162 | CG166: =IF(W166="","",1+CG165) -> 
V167: 163 | AI167: =IF($D$45="","",$D$45) ->  | AL167: =IF($D$37="","",$D$37) ->  | CE167: 163
V168: 164 | AI168: =IF($E$45="","",$E$45) ->  | AL168: =IF($E$37="","",$E$37) ->  | CE168: 164
V169: 165 | AH169: E46 | AI169: =IF($B$46="","",$B$46) ->  | AL169: =IF($F$37="","",$F$37) ->  | CE169: 165
V170: 166 | AI170: =IF($C$46="","",$C$46) ->  | AK170: E38 | AL170: =IF($B$38="","",$B$38) ->  | CE170: 166
V171: 167 | AI171: =IF($D$46="","",$D$46) ->  | AL171: =IF($C$38="","",$C$38) ->  | CE171: 167
V172: 168 | AI172: =IF($E$46="","",$E$46) ->  | AL172: =IF($D$38="","",$D$38) ->  | CE172: 168
V173: 169 | AH173: E47 | AI173: =IF($B$47="","",$B$47) ->  | AL173: =IF($E$38="","",$E$38) ->  | CE173: 169
V174: 170 | AI174: =IF($C$47="","",$C$47) ->  | AL174: =IF($F$38="","",$F$38) ->  | CE174: 170
V175: 171 | AI175: =IF($D$47="","",$D$47) ->  | AK175: E39 | AL175: =IF($B$39="","",$B$39) ->  | CE175: 171
V176: 172 | AI176: =IF($E$47="","",$E$47) ->  | AL176: =IF($C$39="","",$C$39) ->  | CE176: 172
V177: 173 | AH177: E48 | AI177: =IF($B$48="","",$B$48) ->  | AL177: =IF($D$39="","",$D$39) ->  | CE177: 173
V178: 174 | AI178: =IF($C$48="","",$C$48) ->  | AL178: =IF($E$39="","",$E$39) ->  | CE178: 174
V179: 175 | AI179: =IF($D$48="","",$D$48) ->  | AL179: =IF($F$39="","",$F$39) ->  | CE179: 175
V180: 176 | AI180: =IF($E$48="","",$E$48) ->  | AK180: E40 | AL180: =IF($B$40="","",$B$40) ->  | CE180: 176
V181: 177 | AH181: E49 | AI181: =IF($B$49="","",$B$49) ->  | AL181: =IF($C$40="","",$C$40) ->  | CE181: 177
V182: 178 | AI182: =IF($C$49="","",$C$49) ->  | AL182: =IF($D$40="","",$D$40) ->  | CE182: 178
V183: 179 | AI183: =IF($D$49="","",$D$49) ->  | AL183: =IF($E$40="","",$E$40) ->  | CE183: 179
V184: 180 | AI184: =IF($E$49="","",$E$49) ->  | AL184: =IF($F$40="","",$F$40) ->  | CE184: 180
V185: 181 | AH185: E50 | AI185: =IF($B$50="","",$B$50) ->  | AK185: E41 | AL185: =IF($B$41="","",$B$41) ->  | CE185: 181
V186: 182 | AI186: =IF($C$50="","",$C$50) ->  | AL186: =IF($C$41="","",$C$41) ->  | CE186: 182
V187: 183 | AI187: =IF($D$50="","",$D$50) ->  | AL187: =IF($D$41="","",$D$41) ->  | CE187: 183
V188: 184 | AI188: =IF($E$50="","",$E$50) ->  | AL188: =IF($E$41="","",$E$41) ->  | CE188: 184
V189: 185 | AH189: E51 | AI189: =IF($B$51="","",$B$51) ->  | AL189: =IF($F$41="","",$F$41) ->  | CE189: 185
V190: 186 | AI190: =IF($C$51="","",$C$51) ->  | AK190: E42 | AL190: =IF($B$42="","",$B$42) ->  | CE190: 186
V191: 187 | AI191: =IF($D$51="","",$D$51) ->  | AL191: =IF($C$42="","",$C$42) ->  | CE191: 187
V192: 188 | AI192: =IF($E$51="","",$E$51) ->  | AL192: =IF($D$42="","",$D$42) ->  | CE192: 188
V193: 189 | AH193: E52 | AI193: =IF($B$52="","",$B$52) ->  | AL193: =IF($E$42="","",$E$42) ->  | CE193: 189
V194: 190 | AI194: =IF($C$52="","",$C$52) ->  | AL194: =IF($F$42="","",$F$42) ->  | CE194: 190
V195: 191 | AI195: =IF($D$52="","",$D$52) ->  | AK195: E43 | AL195: =IF($B$43="","",$B$43) ->  | CE195: 191
V196: 192 | AI196: =IF($E$52="","",$E$52) ->  | AL196: =IF($C$43="","",$C$43) ->  | CE196: 192
V197: 193 | X197: =IF(W197<>"",IF(W197<UGW,1,0),"") ->  | Y197: =IF(W197<>"",IF(W197>OGW,1,0),"") ->  | AH197: E53 | AI197: =IF($B$53="","",$B$53) ->  | AL197: =IF($D$43="","",$D$43) ->  | CE197: 193 | CF197: =IF(W197="",NA(),SMALL(xi,CG197)) ->  | CH197: =IF(W197="","",NORMSDIST((CF197-Mittelwert)/Standardabweichung)-0.00000001) ->  | CI197: =IF(W197="","",1-CH197) ->  | CJ197: =IF(W197="","",SMALL(BG,CG197)) ->  | CK197: =IF(W197="","",(2*CG197-1)*(LN(CJ197)+LN(CH197))) ->  | CL197: =IF(W197="",NA(),NORMSINV((CG197-0.3)/(Anzahl+0.4))) -> 
V198: 194 | W198: =IF($AP$39=2,IF(AC198<>"",AC198,""),(IF($AP$39=3,IF(AF198<>"",AF198,""),(IF($AP$39=4,IF(AI198<>"",AI198,""),IF(AL198<>"",AL198,"")))))) ->  | AI198: =IF($C$53="","",$C$53) ->  | AL198: =IF($E$43="","",$E$43) ->  | CE198: 194 | CG198: =IF(W198="","",1+CG197) -> 
V199: 195 | AI199: =IF($D$53="","",$D$53) ->  | AL199: =IF($F$43="","",$F$43) ->  | CE199: 195
V200: 196 | AI200: =IF($E$53="","",$E$53) ->  | AK200: E44 | AL200: =IF($B$44="","",$B$44) ->  | CE200: 196
V201: 197 | AH201: E54 | AI201: =IF($B$54="","",$B$54) ->  | AL201: =IF($C$44="","",$C$44) ->  | CE201: 197
... 54 more rows

Sheet example
B1: Stichprobe | C1: Y1 | D1: Y2 | E1: Y3 | F1: Y4 | G1: Y5
B2: 1 | C2: 74.03 | D2: 74.002 | E2: 74.019 | F2: 73.992 | G2: 74.008
B3: 2 | C3: 73.995 | D3: 73.992 | E3: 74.001 | F3: 74.011 | G3: 74.004
B4: 3 | C4: 73.988 | D4: 74.024 | E4: 74.021 | F4: 74.005 | G4: 74.002
B5: 4 | C5: 74.002 | D5: 73.996 | E5: 73.993 | F5: 74.015 | G5: 74.009
B6: 5 | C6: 73.992 | D6: 74.007 | E6: 74.015 | F6: 73.989 | G6: 74.014
B7: 6 | C7: 74.009 | D7: 73.994 | E7: 73.997 | F7: 73.985 | G7: 73.993
B8: 7 | C8: 73.995 | D8: 74.006 | E8: 73.994 | F8: 74 | G8: 74.005
B9: 8 | C9: 73.985 | D9: 74.003 | E9: 73.993 | F9: 74.015 | G9: 73.988
B10: 9 | C10: 74.008 | D10: 73.995 | E10: 74.009 | F10: 74.005 | G10: 74.004
B11: 10 | C11: 73.998 | D11: 74 | E11: 73.99 | F11: 74.007 | G11: 73.995
B12: 11 | C12: 73.994 | D12: 73.998 | E12: 73.994 | F12: 73.995 | G12: 73.99
B13: 12 | C13: 74.004 | D13: 74 | E13: 74.007 | F13: 74 | G13: 73.996
B14: 13 | C14: 73.983 | D14: 74.002 | E14: 73.998 | F14: 73.997 | G14: 74.012
B15: 14 | C15: 74.006 | D15: 73.967 | E15: 73.994 | F15: 74 | G15: 73.984
B16: 15 | C16: 74.012 | D16: 74.014 | E16: 73.998 | F16: 73.999 | G16: 74.007
B17: 16 | C17: 74 | D17: 73.984 | E17: 74.005 | F17: 73.998 | G17: 73.996
B18: 17 | C18: 73.994 | D18: 74.012 | E18: 73.986 | F18: 74.005 | G18: 74.007
B19: 18 | C19: 74.006 | D19: 74.01 | E19: 74.018 | F19: 74.003 | G19: 74
B20: 19 | C20: 73.984 | D20: 74.002 | E20: 74.003 | F20: 74.005 | G20: 73.997
B21: 20 | C21: 74 | D21: 74.01 | E21: 74.013 | F21: 74.02 | G21: 74.003
B22: 21 | C22: 73.982 | D22: 74.001 | E22: 74.015 | F22: 74.005 | G22: 73.996
B23: 22 | C23: 74.004 | D23: 73.999 | E23: 73.99 | F23: 74.006 | G23: 74.009
B24: 23 | C24: 74.01 | D24: 73.989 | E24: 73.99 | F24: 74.009 | G24: 74.014
B25: 24 | C25: 74.015 | D25: 74.008 | E25: 73.993 | F25: 74 | G25: 74.01
B26: 25 | C26: 73.982 | D26: 73.984 | E26: 73.995 | F26: 74.017 | G26: 74.013
B27: 26 | C27: 74.03 | D27: 74.002 | E27: 74.019 | F27: 73.992 | G27: 74.008
B28: 27 | C28: 73.995 | D28: 73.992 | E28: 74.001 | F28: 74.011 | G28: 74.004
B29: 28 | C29: 73.988 | D29: 74.024 | E29: 74.021 | F29: 74.005 | G29: 74.002
B30: 29 | C30: 74.002 | D30: 73.996 | E30: 73.993 | F30: 74.015 | G30: 74.009
B31: 30 | C31: 73.992 | D31: 74.007 | E31: 74.015 | F31: 73.989 | G31: 74.014
B32: 31 | C32: 74.009 | D32: 73.994 | E32: 73.997 | F32: 73.985 | G32: 73.993
B33: 32 | C33: 73.995 | D33: 74.006 | E33: 73.994 | F33: 74 | G33: 74.005
B34: 33 | C34: 73.985 | D34: 74.003 | E34: 73.993 | F34: 74.015 | G34: 73.988
B35: 34 | C35: 74.008 | D35: 73.995 | E35: 74.009 | F35: 74.005 | G35: 74.004
B36: 35 | C36: 73.998 | D36: 74 | E36: 73.99 | F36: 74.007 | G36: 73.995
B37: 36 | C37: 73.994 | D37: 73.998 | E37: 73.994 | F37: 73.995 | G37: 73.99
B38: 37 | C38: 74.004 | D38: 74 | E38: 74.007 | F38: 74 | G38: 73.996
B39: 38 | C39: 73.983 | D39: 74.002 | E39: 73.998 | F39: 73.997 | G39: 74.012
B40: 39 | C40: 74.006 | D40: 73.967 | E40: 73.994 | F40: 74 | G40: 73.984
B41: 40 | C41: 74.012 | D41: 74.014 | E41: 73.998 | F41: 73.999 | G41: 74.007
B42: 41 | C42: 74 | D42: 73.984 | E42: 74.005 | F42: 73.998 | G42: 73.996
B43: 42 | C43: 73.994 | D43: 74.012 | E43: 73.986 | F43: 74.005 | G43: 74.007
B44: 43 | C44: 74.006 | D44: 74.01 | E44: 74.018 | F44: 74.003 | G44: 74
B45: 44 | C45: 73.984 | D45: 74.002 | E45: 74.003 | F45: 74.005 | G45: 73.997
B46: 45 | C46: 74 | D46: 74.01 | E46: 74.013 | F46: 74.02 | G46: 74.003
B47: 46 | C47: 73.982 | D47: 74.001 | E47: 74.015 | F47: 74.005 | G47: 73.996
B48: 47 | C48: 74.004 | D48: 73.999 | E48: 73.99 | F48: 74.006 | G48: 74.009
B49: 48 | C49: 74.01 | D49: 73.989 | E49: 73.99 | F49: 74.009 | G49: 74.014
B50: 49 | C50: 74.015 | D50: 74.008 | E50: 73.993 | F50: 74 | G50: 74.01
B51: 50 | C51: 73.982 | D51: 73.984 | E51: 73.995 | F51: 74.017 | G51: 74.013
B54: Stichprobe | C54: Y1 | D54: Y2 | E54: Y3 | F54: Y4 | G54: Y5
B55: 1 | C55: 74.03 | D55: 74.002
B56: 2 | C56: 73.995 | D56: 73.992
B57: 3 | C57: 73.988 | D57: 74.024
B58: 4 | C58: 74.002 | D58: 73.996
B59: 5 | C59: 73.992 | D59: 74.007
B60: 6 | C60: 74.009 | D60: 73.994
B61: 7 | C61: 73.995 | D61: 74.006
B62: 8 | C62: 73.985 | D62: 74.003
B63: 9 | C63: 74.008 | D63: 73.995
B64: 10 | C64: 73.998 | D64: 74
B65: 11 | C65: 73.994 | D65: 73.998
B66: 12 | C66: 74.004 | D66: 74
B67: 13 | C67: 73.983 | D67: 74.002
B68: 14 | C68: 74.006 | D68: 73.967
B69: 15 | C69: 74.012 | D69: 74.014
B70: 16 | C70: 74 | D70: 73.984
B71: 17 | C71: 73.994 | D71: 74.012
B72: 18 | C72: 74.006 | D72: 74.01
B73: 19 | C73: 73.984 | D73: 74.002
B74: 20 | C74: 74 | D74: 74.01
B75: 21 | C75: 73.982 | D75: 74.001
B76: 22 | C76: 74.004 | D76: 73.999
B77: 23 | C77: 74.01 | D77: 73.989
B78: 24 | C78: 74.015 | D78: 74.008
B79: 25 | C79: 73.982 | D79: 73.984
B80: 26 | C80: 74.03 | D80: 74.002
B81: 27 | C81: 73.995 | D81: 73.992
B82: 28 | C82: 73.988 | D82: 74.024
B83: 29 | C83: 74.002 | D83: 73.996
B84: 30 | C84: 73.992 | D84: 74.007
B85: 31 | C85: 74.009 | D85: 73.994
B86: 32 | C86: 73.995 | D86: 74.006
B87: 33 | C87: 73.985 | D87: 74.003
B88: 34 | C88: 74.008 | D88: 73.995
B89: 35 | C89: 73.998 | D89: 74
B90: 36 | C90: 73.994 | D90: 73.998
B91: 37
B92: 38
B93: 39
B94: 40
B95: 41
B96: 42
B97: 43
B98: 44
B99: 45
B100: 46
B101: 47
B102: 48
B103: 49
B104: 50

Sheet info
A1: E-Mail: | B1: roland.schnurr@sixsigmablackbelt.de
A2: Quelle: | B2: https://www.sixsigmablackbelt.de/prozessfaehigkeit-und-maschinenfaehigkeit/
